Body Name,Body,Service Division Label,Service Division Code,Organisational Unit,Expenditure Category,Expenditure Code,CIPFA detailed expediture type,CIPFA detailed expediture code,Narrative,Date,Transaction number,Net Amount,Capital and Revenue,Supplier Name,Supplier ID
Chorley Borough Council,http://statistics.data.gov.uk/id/local-authority/30UE,Capital,Capital,Streetscene & Leisure Contracts,Main Contractor,3007,Capital Expenditure,Capital,Restoration of the Sensory Garden in Astley Park to include rebuilding of the stone walls and supply of replacement stone,30/05/2014,95429,"6,900.00",Capital,Adlington Dry Stone Walling,63372
Chorley Borough Council,http://statistics.data.gov.uk/id/local-authority/30UE,Economic Development,1096,Economic Development,Tools & Equipment - Maintenance,40005,"Equipment, Furniture & Materia",5023,As discussed with Bill at Chorley Carnival. Please supply the following items and deliver to site Friday 9th May for the Food,21/05/2014,95338,700.00,Revenue,Adlington Welding Supplies Ltd,21942
Chorley Borough Council,http://statistics.data.gov.uk/id/local-authority/30UE,Unapportionable Central OHeads,1009,Governance,Burglar Alarms & Security Systems,20075,Fixtures and Fittings,5010,2 x access card detectors,09/05/2014,94998,480.00,Revenue,ADT Fire & Security,16645
Chorley Borough Council,http://statistics.data.gov.uk/id/local-authority/30UE,Unapportionable Central OHeads,1009,Governance,Burglar Alarms & Security Systems,20075,Fixtures and Fittings,5010,"Fire alarms, intruder alarms, access system and monitoring work at the Town Hall.",16/05/2014,95224,586.22,Revenue,ADT Fire & Security,16645
Chorley Borough Council,http://statistics.data.gov.uk/id/local-authority/30UE,Central Support Services,1009,Governance,Burglar Alarms & Security Systems,20075,Fixtures and Fittings,5010,"Fire alarms, intruder alarms, access system and monitoring work at the Civic Offices, Union Street.",16/05/2014,95225,268.06,Revenue,ADT Fire & Security,16645
Chorley Borough Council,http://statistics.data.gov.uk/id/local-authority/30UE,Unapportionable Central OHeads,1009,Governance,Burglar Alarms & Security Systems,20075,Fixtures and Fittings,5010,"Fire alarms, intruder alarms, access system and monitoring work at the Town Hall.",16/05/2014,95229,"3,887.43",Revenue,ADT Fire & Security,16645
Chorley Borough Council,http://statistics.data.gov.uk/id/local-authority/30UE,Unapportionable Central OHeads,1009,Governance,Burglar Alarms & Security Systems,20075,Fixtures and Fittings,5010,"Fire alarms, intruder alarms, access system and monitoring work at the Civic Offices, Union Street.",16/05/2014,95230,"4,416.40",Revenue,ADT Fire & Security,16645
Chorley Borough Council,http://statistics.data.gov.uk/id/local-authority/30UE,Central Support Services,1009,Governance,Burglar Alarms & Security Systems,20075,Fixtures and Fittings,5010,"Fire alarms, intruder alarms, access system and monitoring work at the Town Hall.",16/05/2014,95231,284.43,Revenue,ADT Fire & Security,16645
Chorley Borough Council,http://statistics.data.gov.uk/id/local-authority/30UE,Unapportionable Central OHeads,1009,Governance,Burglar Alarms & Security Systems,20075,Fixtures and Fittings,5010,"Fire alarms, intruder alarms, access system and monitoring work at the Town Hall.",16/05/2014,95233,568.60,Revenue,ADT Fire & Security,16645
Chorley Borough Council,http://statistics.data.gov.uk/id/local-authority/30UE,Unapportionable Central OHeads,1009,Governance,Burglar Alarms & Security Systems,20075,Fixtures and Fittings,5010,"Fire alarms, intruder alarms, access system and monitoring work at the Town Hall.",16/05/2014,95234,586.17,Revenue,ADT Fire & Security,16645
Chorley Borough Council,http://statistics.data.gov.uk/id/local-authority/30UE,Central Support Services,1009,Governance,Burglar Alarms & Security Systems,20075,Fixtures and Fittings,5010,"Fire alarms, intruder alarms, access system and monitoring work at the Civic Offices, Union Street.",16/05/2014,95237,332.63,Revenue,ADT Fire & Security,16645
Chorley Borough Council,http://statistics.data.gov.uk/id/local-authority/30UE,Unapportionable Central OHeads,1009,Governance,Burglar Alarms & Security Systems,20075,Fixtures and Fittings,5010,"Fire alarms, intruder alarms, access system and monitoring work at the Civic Offices, Union Street.",16/05/2014,95238,385.00,Revenue,ADT Fire & Security,16645
Chorley Borough Council,http://statistics.data.gov.uk/id/local-authority/30UE,Central Support Services,1009,Governance,Burglar Alarms & Security Systems,20075,Fixtures and Fittings,5010,"Fire alarms, intruder alarms, access system and monitoring work at the Civic Offices, Union Street.",16/05/2014,95239,312.90,Revenue,ADT Fire & Security,16645
Chorley Borough Council,http://statistics.data.gov.uk/id/local-authority/30UE,Community Development,1097,Policy & Performance,Grants To Other Organisations,40127,Grants and Subscriptions,5031,Delivery of volunteering provision to support older people,21/05/2014,95242,"4,166.67",Revenue,Age UK,21252
Chorley Borough Council,http://statistics.data.gov.uk/id/local-authority/30UE,Capital,Capital,Housing,Grants,3002,Capital Expenditure,Capital,Capital Works - Disabled Facility Grant,09/05/2014,94979,"1,800.00",Capital,AJS Joinery and Building Contractor,18195
Chorley Borough Council,http://statistics.data.gov.uk/id/local-authority/30UE,Unapportionable Central OHeads,1009,Governance,Refreshments,40036,Catering,5024,Town hall Fair trade Hospitality provisions.,09/05/2014,94852,386.47,Revenue,allianceonline,59490
Chorley Borough Council,http://statistics.data.gov.uk/id/local-authority/30UE,Unapportionable Central OHeads,1009,"Customer, ICT & Transactional",Bank Charges,40151,Miscellaneous Expenses,5034,CHBC,12/05/2014,95053,"1,987.41",Revenue,Allpay Net Ltd,17242
Chorley Borough Council,http://statistics.data.gov.uk/id/local-authority/30UE,Unapportionable Central OHeads,1009,"Customer, ICT & Transactional",Bank Charges,40151,Miscellaneous Expenses,5034,CHBC,12/05/2014,95053,43.97,Revenue,Allpay Net Ltd,17242
Chorley Borough Council,http://statistics.data.gov.uk/id/local-authority/30UE,Corporate Management,1008,Shared Service Arrangement,Car Leasing Payment,14100,Direct Employee Expenses,5001,early termination,16/05/2014,94196,624.38,Revenue,Alphabet (Uk) Fleet Management Ltd,16651
Chorley Borough Council,http://statistics.data.gov.uk/id/local-authority/30UE,Unapportionable Central OHeads,1009,Shared Service Arrangement,Car Leasing Payment,14100,Direct Employee Expenses,5001,lease car,16/05/2014,94205,257.32,Revenue,Alphabet (Uk) Fleet Management Ltd,16651
Chorley Borough Council,http://statistics.data.gov.uk/id/local-authority/30UE,Unapportionable Central OHeads,1009,Shared Service Arrangement,Car Leasing Payment,14100,Direct Employee Expenses,5001,lease car,16/05/2014,94205,252.84,Revenue,Alphabet (Uk) Fleet Management Ltd,16651
Chorley Borough Council,http://statistics.data.gov.uk/id/local-authority/30UE,Central Support Services,1009,Shared Service Arrangement,Car Leasing Payment,14100,Direct Employee Expenses,5001,lease car,16/05/2014,94205,270.48,Revenue,Alphabet (Uk) Fleet Management Ltd,16651
Chorley Borough Council,http://statistics.data.gov.uk/id/local-authority/30UE,Corporate Management,1008,Shared Service Arrangement,Car Leasing Payment,14100,Direct Employee Expenses,5001,lease car,16/05/2014,94205,327.88,Revenue,Alphabet (Uk) Fleet Management Ltd,16651
Chorley Borough Council,http://statistics.data.gov.uk/id/local-authority/30UE,Unapportionable Central OHeads,1009,Shared Service Arrangement,Car Leasing Payment,14100,Direct Employee Expenses,5001,Vehicle Leasing,16/05/2014,94205,22.40,Revenue,Alphabet (Uk) Fleet Management Ltd,16651
Chorley Borough Council,http://statistics.data.gov.uk/id/local-authority/30UE,Unapportionable Central OHeads,1009,Shared Service Arrangement,Car Leasing Payment,14100,Direct Employee Expenses,5001,Vehicle Leasing,16/05/2014,94205,22.85,Revenue,Alphabet (Uk) Fleet Management Ltd,16651
Chorley Borough Council,http://statistics.data.gov.uk/id/local-authority/30UE,Central Support Services,1009,Shared Service Arrangement,Car Leasing Payment,14100,Direct Employee Expenses,5001,Vehicle Leasing,16/05/2014,94205,24.13,Revenue,Alphabet (Uk) Fleet Management Ltd,16651
Chorley Borough Council,http://statistics.data.gov.uk/id/local-authority/30UE,Corporate Management,1008,Shared Service Arrangement,Car Leasing Payment,14100,Direct Employee Expenses,5001,Vehicle Leasing,16/05/2014,94205,27.49,Revenue,Alphabet (Uk) Fleet Management Ltd,16651
Chorley Borough Council,http://statistics.data.gov.uk/id/local-authority/30UE,Corporate Management,1008,Shared Service Arrangement,Car Leasing Payment,14100,Direct Employee Expenses,5001,Vehicle Leasing,16/05/2014,94714,284.89,Revenue,Alphabet (Uk) Fleet Management Ltd,16651
Chorley Borough Council,http://statistics.data.gov.uk/id/local-authority/30UE,Corporate Management,1008,Shared Service Arrangement,Car Leasing Payment,14100,Direct Employee Expenses,5001,Vehicle Leasing,16/05/2014,94714,24.80,Revenue,Alphabet (Uk) Fleet Management Ltd,16651
Chorley Borough Council,http://statistics.data.gov.uk/id/local-authority/30UE,Unapportionable Central OHeads,1009,Shared Service Arrangement,Car Leasing Payment,14100,Direct Employee Expenses,5001,Vehicle Leasing,16/05/2014,94714,279.93,Revenue,Alphabet (Uk) Fleet Management Ltd,16651
Chorley Borough Council,http://statistics.data.gov.uk/id/local-authority/30UE,Unapportionable Central OHeads,1009,Shared Service Arrangement,Car Leasing Payment,14100,Direct Employee Expenses,5001,Vehicle Leasing,16/05/2014,94714,25.30,Revenue,Alphabet (Uk) Fleet Management Ltd,16651
Chorley Borough Council,http://statistics.data.gov.uk/id/local-authority/30UE,Corporate Management,1008,Shared Service Arrangement,Car Leasing Payment,14100,Direct Employee Expenses,5001,Vehicle Leasing,16/05/2014,94714,363.01,Revenue,Alphabet (Uk) Fleet Management Ltd,16651
Chorley Borough Council,http://statistics.data.gov.uk/id/local-authority/30UE,Corporate Management,1008,Shared Service Arrangement,Car Leasing Payment,14100,Direct Employee Expenses,5001,Vehicle Leasing,16/05/2014,94714,30.44,Revenue,Alphabet (Uk) Fleet Management Ltd,16651
Chorley Borough Council,http://statistics.data.gov.uk/id/local-authority/30UE,Central Support Services,1009,Shared Service Arrangement,Car Leasing Payment,14100,Direct Employee Expenses,5001,Vehicle Leasing,16/05/2014,94714,299.46,Revenue,Alphabet (Uk) Fleet Management Ltd,16651
Chorley Borough Council,http://statistics.data.gov.uk/id/local-authority/30UE,Central Support Services,1009,Shared Service Arrangement,Car Leasing Payment,14100,Direct Employee Expenses,5001,Vehicle Leasing,16/05/2014,94714,26.72,Revenue,Alphabet (Uk) Fleet Management Ltd,16651
Chorley Borough Council,http://statistics.data.gov.uk/id/local-authority/30UE,Corporate Management,1008,Shared Service Arrangement,Car Leasing Payment,14100,Direct Employee Expenses,5001,Vehicle Leasing,16/05/2014,95201,"4,149.46",Revenue,Alphabet (Uk) Fleet Management Ltd,16651
Chorley Borough Council,http://statistics.data.gov.uk/id/local-authority/30UE,Corporate Management,1008,Shared Service Arrangement,Car Leasing Payment,14100,Direct Employee Expenses,5001,Vehicle Leasing,16/05/2014,95201,346.08,Revenue,Alphabet (Uk) Fleet Management Ltd,16651
Chorley Borough Council,http://statistics.data.gov.uk/id/local-authority/30UE,Corporate Management,1008,Shared Service Arrangement,Car Leasing Payment,14100,Direct Employee Expenses,5001,Vehicle Leasing,28/05/2014,95421,257.62,Revenue,Alphabet (Uk) Fleet Management Ltd,16651
Chorley Borough Council,http://statistics.data.gov.uk/id/local-authority/30UE,Corporate Management,1008,Shared Service Arrangement,Car Leasing Payment,14100,Direct Employee Expenses,5001,Vehicle Leasing,28/05/2014,95421,21.61,Revenue,Alphabet (Uk) Fleet Management Ltd,16651
Chorley Borough Council,http://statistics.data.gov.uk/id/local-authority/30UE,Corporate Management,1008,Shared Service Arrangement,Car Leasing Payment,14100,Direct Employee Expenses,5001,Vehicle Leasing,28/05/2014,95421,275.70,Revenue,Alphabet (Uk) Fleet Management Ltd,16651
Chorley Borough Council,http://statistics.data.gov.uk/id/local-authority/30UE,Corporate Management,1008,Shared Service Arrangement,Car Leasing Payment,14100,Direct Employee Expenses,5001,Vehicle Leasing,28/05/2014,95421,24.00,Revenue,Alphabet (Uk) Fleet Management Ltd,16651
Chorley Borough Council,http://statistics.data.gov.uk/id/local-authority/30UE,Flood Defence & Land Drainage,1046,Shared Service Arrangement,Car Leasing Payment,14100,Direct Employee Expenses,5001,Vehicle Leasing,28/05/2014,95421,109.28,Revenue,Alphabet (Uk) Fleet Management Ltd,16651
Chorley Borough Council,http://statistics.data.gov.uk/id/local-authority/30UE,Flood Defence & Land Drainage,1046,Shared Service Arrangement,Car Leasing Payment,14100,Direct Employee Expenses,5001,Vehicle Leasing,28/05/2014,95421,8.75,Revenue,Alphabet (Uk) Fleet Management Ltd,16651
Chorley Borough Council,http://statistics.data.gov.uk/id/local-authority/30UE,Unapportionable Central OHeads,1009,Shared Service Arrangement,Car Leasing Payment,14100,Direct Employee Expenses,5001,Vehicle Leasing,28/05/2014,95421,186.07,Revenue,Alphabet (Uk) Fleet Management Ltd,16651
Chorley Borough Council,http://statistics.data.gov.uk/id/local-authority/30UE,Unapportionable Central OHeads,1009,Shared Service Arrangement,Car Leasing Payment,14100,Direct Employee Expenses,5001,Vehicle Leasing,28/05/2014,95421,15.18,Revenue,Alphabet (Uk) Fleet Management Ltd,16651
Chorley Borough Council,http://statistics.data.gov.uk/id/local-authority/30UE,Unapportionable Central OHeads,1009,Shared Service Arrangement,Car Leasing Payment,14100,Direct Employee Expenses,5001,Vehicle Leasing,28/05/2014,95421,270.90,Revenue,Alphabet (Uk) Fleet Management Ltd,16651
Chorley Borough Council,http://statistics.data.gov.uk/id/local-authority/30UE,Unapportionable Central OHeads,1009,Shared Service Arrangement,Car Leasing Payment,14100,Direct Employee Expenses,5001,Vehicle Leasing,28/05/2014,95421,24.48,Revenue,Alphabet (Uk) Fleet Management Ltd,16651
Chorley Borough Council,http://statistics.data.gov.uk/id/local-authority/30UE,Unapportionable Central OHeads,1009,Shared Service Arrangement,Car Leasing Payment,14100,Direct Employee Expenses,5001,Vehicle Leasing,28/05/2014,95421,289.80,Revenue,Alphabet (Uk) Fleet Management Ltd,16651
Chorley Borough Council,http://statistics.data.gov.uk/id/local-authority/30UE,Unapportionable Central OHeads,1009,Shared Service Arrangement,Car Leasing Payment,14100,Direct Employee Expenses,5001,Vehicle Leasing,28/05/2014,95421,25.86,Revenue,Alphabet (Uk) Fleet Management Ltd,16651
Chorley Borough Council,http://statistics.data.gov.uk/id/local-authority/30UE,Service Management & Support,1009,Shared Service Arrangement,Car Leasing Payment,14100,Direct Employee Expenses,5001,Vehicle Leasing,28/05/2014,95422,"2,336.42",Revenue,Alphabet (Uk) Fleet Management Ltd,16651
Chorley Borough Council,http://statistics.data.gov.uk/id/local-authority/30UE,Service Management & Support,1009,Shared Service Arrangement,Car Leasing Payment,14100,Direct Employee Expenses,5001,Vehicle Leasing,28/05/2014,95422,202.79,Revenue,Alphabet (Uk) Fleet Management Ltd,16651
Chorley Borough Council,http://statistics.data.gov.uk/id/local-authority/30UE,Economic Development,1096,Economic Development,Grants To Other Organisations,40127,Grants and Subscriptions,5031,Starting in Business,30/05/2014,95469,250.00,Revenue,NAME REDACTED,65288
Chorley Borough Council,http://statistics.data.gov.uk/id/local-authority/30UE,Service Management & Support,1009,Streetscene & Leisure Contracts,Maintenance Street Furniture,20055,Grounds Maintenance Costs,5013,10 Pole Baskets with liners 600mm Black,16/05/2014,95075,400.00,Revenue,Amethyst Horticulture Ltd,19611
Chorley Borough Council,http://statistics.data.gov.uk/id/local-authority/30UE,Unapportionable Central OHeads,1009,Governance,Cleaning Materials,40019,"Equipment, Furniture & Materia",5023,Cleaning Material for Town Hall / Union St / Gilli St.,06/05/2014,94853,"1,106.88",Revenue,Amtoll Ltd,21738
Chorley Borough Council,http://statistics.data.gov.uk/id/local-authority/30UE,Economic Development,1096,Economic Development,Cleaning Materials,40019,"Equipment, Furniture & Materia",5023,To supply items as per attached list in email,09/05/2014,95016,419.17,Revenue,Amtoll Ltd,21738
Chorley Borough Council,http://statistics.data.gov.uk/id/local-authority/30UE,Democratic Represent and  Mgnt,1007,Streetscene & Leisure Contracts,Cleaning Materials,40019,"Equipment, Furniture & Materia",5023,"Orbis Compact  FB648 Rotary Scrubber disk drive to fit FB648 11`` White pads HG111-W11`` Red pads HG111- R",14/05/2014,95077,614.66,Revenue,Amtoll Ltd,21738
Chorley Borough Council,http://statistics.data.gov.uk/id/local-authority/30UE,Economic Development,1096,Economic Development,Cleaning Materials,40019,"Equipment, Furniture & Materia",5023,Please supply items as per order on email ,30/05/2014,95380,386.46,Revenue,Amtoll Ltd,21738
Chorley Borough Council,http://statistics.data.gov.uk/id/local-authority/30UE,Economic Development,1096,Economic Development,Cleaning Materials,40019,"Equipment, Furniture & Materia",5023,To supply janitorial products as per email ,30/05/2014,95477,352.61,Revenue,Amtoll Ltd,21738
Chorley Borough Council,http://statistics.data.gov.uk/id/local-authority/30UE,Homelessness,1075,Housing,Rental Bond Scheme,40241,Miscellaneous Expenses,5034,Rental Bond Scheme,30/05/2014,95470,390.00,Revenue,NAME REDACTED,59484
Chorley Borough Council,http://statistics.data.gov.uk/id/local-authority/30UE,Unapportionable Central OHeads,1009,"Customer, ICT & Transactional",Computer Equipment-Maintenance,40105,Communication and Computing,5028,Managed infrastructure contract - May 2014,16/05/2014,95114,"2,000.00",Revenue,ANS Group,22502
Chorley Borough Council,http://statistics.data.gov.uk/id/local-authority/30UE,Unapportionable Central OHeads,1009,Shared Service Arrangement,IT Software - Annual Licences,40101,Communication and Computing,5028,iConnect Cloud Site Licence,09/05/2014,95015,624.75,Revenue,APT,17305
Chorley Borough Council,http://statistics.data.gov.uk/id/local-authority/30UE,Unapportionable Central OHeads,1009,Shared Service Arrangement,IT Software - Annual Licences,40101,Communication and Computing,5028,iConnect Cloud Remote Installation & Training,09/05/2014,95015,325.00,Revenue,APT,17305
Chorley Borough Council,http://statistics.data.gov.uk/id/local-authority/30UE,Unapportionable Central OHeads,1009,Shared Service Arrangement,Computer Software-Maintenance,40107,Communication and Computing,5028,iConnect Cloud Datasafe Annual Maintenance (upgade complimentary),09/05/2014,95015,25.00,Revenue,APT,17305
Chorley Borough Council,http://statistics.data.gov.uk/id/local-authority/30UE,Unapportionable Central OHeads,1009,Shared Service Arrangement,Computer Software-Maintenance,40107,Communication and Computing,5028,iConnect Cloud Site Licence Annual Maintenance,09/05/2014,95015,890.42,Revenue,APT,17305
Chorley Borough Council,http://statistics.data.gov.uk/id/local-authority/30UE,Service Management & Support,1009,Streetscene & Leisure Contracts,Protective Clothing,40040,"Clothing, Uniforms and Laundry",5025,"High-Viz, Yellow, Waterproof Bomber Jacket c/w Chorley Council logo screen printed on front and back.  ",19/05/2014,93465,192.10,Revenue,Arco Limited,17458
Chorley Borough Council,http://statistics.data.gov.uk/id/local-authority/30UE,Service Management & Support,1009,Streetscene & Leisure Contracts,Protective Clothing,40040,"Clothing, Uniforms and Laundry",5025,"High-Viz, Yellow, Waterproof Bomber Jacket c/w Chorley Council logo screen printed on front and back. ",19/05/2014,93465,192.10,Revenue,Arco Limited,17458
Chorley Borough Council,http://statistics.data.gov.uk/id/local-authority/30UE,Service Management & Support,1009,Streetscene & Leisure Contracts,Protective Clothing,40040,"Clothing, Uniforms and Laundry",5025,Hi-Viz Equipment,09/05/2014,93847,384.20,Revenue,Arco Limited,17458
Chorley Borough Council,http://statistics.data.gov.uk/id/local-authority/30UE,Service Management & Support,1009,Streetscene & Leisure Contracts,Protective Clothing,40040,"Clothing, Uniforms and Laundry",5025,"Water repellant combat trousers, multi pocketed with concealed zips, belt hoops, part elastciated waist, reinforced seat ",28/05/2014,95315,73.00,Revenue,Arco Limited,17458
Chorley Borough Council,http://statistics.data.gov.uk/id/local-authority/30UE,Service Management & Support,1009,Streetscene & Leisure Contracts,Protective Clothing,40040,"Clothing, Uniforms and Laundry",5025,"Water repellant combat trousers, multi pocketed with concealed zips, belt hoops, part elastciated waist, reinforced seat ",28/05/2014,95315,109.50,Revenue,Arco Limited,17458
Chorley Borough Council,http://statistics.data.gov.uk/id/local-authority/30UE,Service Management & Support,1009,Streetscene & Leisure Contracts,Protective Clothing,40040,"Clothing, Uniforms and Laundry",5025,"Water repellant combat trousers, multi pocketed with concealed zips, belt hoops, part elastciated waist, reinforced seat ",28/05/2014,95315,73.00,Revenue,Arco Limited,17458
Chorley Borough Council,http://statistics.data.gov.uk/id/local-authority/30UE,Service Management & Support,1009,Streetscene & Leisure Contracts,Supplies-Grounds Maintenance,40025,"Equipment, Furniture & Materia",5023,Manufacture and supply 50 hanging baskets as requested,21/05/2014,95294,725.00,Revenue,Ark Welding Ltd,18154
Chorley Borough Council,http://statistics.data.gov.uk/id/local-authority/30UE,Service Management & Support,1009,Streetscene & Leisure Contracts,External Contractor,40198,Miscellaneous Expenses,5034,Manufacture and supply ornamental sculpture of Transit of Venus as requested,21/05/2014,95297,785.00,Revenue,Ark Welding Ltd,18154
Chorley Borough Council,http://statistics.data.gov.uk/id/local-authority/30UE,Service Management & Support,1009,Streetscene & Leisure Contracts,External Contractor,40198,Miscellaneous Expenses,5034,Manufacture and supply ornamental Penny Farthing as requested for roundabout feature,21/05/2014,95298,"1,850.00",Revenue,Ark Welding Ltd,18154
Chorley Borough Council,http://statistics.data.gov.uk/id/local-authority/30UE,Unapportionable Central OHeads,1009,Shared Service Arrangement,Car Leasing Payment,14100,Direct Employee Expenses,5001,Vehicle Leasing,16/05/2014,95055,424.15,Revenue,Arnold Clark Finance Ltd,20685
Chorley Borough Council,http://statistics.data.gov.uk/id/local-authority/30UE,Unapportionable Central OHeads,1009,Shared Service Arrangement,Car Leasing Payment,14100,Direct Employee Expenses,5001,Vehicle Leasing,16/05/2014,95055,37.97,Revenue,Arnold Clark Finance Ltd,20685
Chorley Borough Council,http://statistics.data.gov.uk/id/local-authority/30UE,Democratic Represent and  Mgnt,1007,Shared Service Arrangement,Car Leasing Payment,14100,Direct Employee Expenses,5001,Vehicle Leasing,30/04/2014,95056,"2,940.00",Revenue,Arnold Clark Finance Ltd,20685
Chorley Borough Council,http://statistics.data.gov.uk/id/local-authority/30UE,Democratic Represent and  Mgnt,1007,Shared Service Arrangement,Car Leasing Payment,14100,Direct Employee Expenses,5001,Vehicle Leasing,30/04/2014,95056,253.57,Revenue,Arnold Clark Finance Ltd,20685
Chorley Borough Council,http://statistics.data.gov.uk/id/local-authority/30UE,Development Control,1091,Shared Service Arrangement,Car Leasing Payment,14100,Direct Employee Expenses,5001,Vehicle Leasing,28/05/2014,95423,618.66,Revenue,Arnold Clark Finance Ltd,20685
Chorley Borough Council,http://statistics.data.gov.uk/id/local-authority/30UE,Development Control,1091,Shared Service Arrangement,Car Leasing Payment,14100,Direct Employee Expenses,5001,Vehicle Leasing,28/05/2014,95423,53.88,Revenue,Arnold Clark Finance Ltd,20685
Chorley Borough Council,http://statistics.data.gov.uk/id/local-authority/30UE,Flood Defence & Land Drainage,1046,Shared Service Arrangement,Car Leasing Payment,14100,Direct Employee Expenses,5001,Vehicle Leasing,28/05/2014,95424,300.00,Revenue,Arnold Clark Finance Ltd,20685
Chorley Borough Council,http://statistics.data.gov.uk/id/local-authority/30UE,Economic Development,1096,Economic Development,General Subscriptions,40146,Grants and Subscriptions,5031,2014 ATCM membership,09/05/2014,95018,495.00,Revenue,Association of Town Centre Management,18234
Chorley Borough Council,http://statistics.data.gov.uk/id/local-authority/30UE,Unapportionable Central OHeads,1009,Governance,Professional Fees,14011,Direct Employee Expenses,5001,Professional Fees Lakeland Gardens - Chorley Council v NAME REDACTED,21/05/2014,95316,900.00,Revenue,Atlantic Chambers,61014
Chorley Borough Council,http://statistics.data.gov.uk/id/local-authority/30UE,Corporate Management,1008,Health Environment & Neighbourhoods,Taxi Testing & Vehicle Safety Report,40234,Services,5027,MOT,09/05/2014,95057,767.90,Revenue,Autocentre LTD,21651
Chorley Borough Council,http://statistics.data.gov.uk/id/local-authority/30UE,Corporate Management,1008,Health Environment & Neighbourhoods,Taxi Testing & Vehicle Safety Report,40234,Services,5027,MOT,09/05/2014,95057,116.62,Revenue,Autocentre LTD,21651
Chorley Borough Council,http://statistics.data.gov.uk/id/local-authority/30UE,Corporate Management,1008,Housing,Burial Exps - P H Act 1984,40209,Miscellaneous Expenses,5034,Provision of funeral for NAME REDACTED.  (Grave in common ground).  Price as agreed with Livesey`s Funeral Service.,28/05/2014,95277,700.00,Revenue,B Livesey Limited,17943
Chorley Borough Council,http://statistics.data.gov.uk/id/local-authority/30UE,Service Management & Support,1009,Streetscene & Leisure Contracts,Hire Of Transport,30028,Contrct Hire & Operating Lease,5018,Hire of 3 x John Deere 1445 front deck rotary mowers ,21/05/2014,95122,900.00,Revenue,Balmers Garden Machinery,17075
Chorley Borough Council,http://statistics.data.gov.uk/id/local-authority/30UE,Service Management & Support,1009,Streetscene & Leisure Contracts,Tools & Equipment - Purchase,40003,"Equipment, Furniture & Materia",5023,Supply 3 x John Deere 1545 front deck rotary mowers ,28/05/2014,95215,"51,300.00",Revenue,Balmers Garden Machinery,17075
Chorley Borough Council,http://statistics.data.gov.uk/id/local-authority/30UE,Service Management & Support,1009,Streetscene & Leisure Contracts,Tools & Equipment - Purchase,40003,"Equipment, Furniture & Materia",5023,Supply items as on invoice number 167763 already supplied.,28/05/2014,95377,543.69,Revenue,Balmers Garden Machinery,17075
Chorley Borough Council,http://statistics.data.gov.uk/id/local-authority/30UE,Corporate Management,1008,Shared Service Arrangement,Bank Charges,40151,Miscellaneous Expenses,5034,Merchant Invoices/ Statement,20/05/2014,94900,499.44,Revenue,Barclaycard Merchant Services,61601
Chorley Borough Council,http://statistics.data.gov.uk/id/local-authority/30UE,Unapportionable Central OHeads,1009,"Customer, ICT & Transactional",Consultants` Fees,40077,Services,5027,Support Services as agreed with Customer  Transactional and ICT Services. Estimated 3 days a week,14/05/2014,95099,"2,100.00",Revenue,REDACTED PERSONAL DATA,22238
Chorley Borough Council,http://statistics.data.gov.uk/id/local-authority/30UE,Homelessness,1075,Housing,Postages,40082,Communication and Computing,5028,Linen Collection,21/05/2014,95019,238.40,Revenue,Berendsen UK Ltd,20799
Chorley Borough Council,http://statistics.data.gov.uk/id/local-authority/30UE,Homelessness,1075,Housing,Postages,40082,Communication and Computing,5028,Linen Collection,21/05/2014,95019,13.66,Revenue,Berendsen UK Ltd,20799
Chorley Borough Council,http://statistics.data.gov.uk/id/local-authority/30UE,Homelessness,1075,Housing,Grants To Other Organisations,40127,Grants and Subscriptions,5031,"Personalised solution budget  to support NSNO, part of Single Homelessness Inititative",09/05/2014,94925,"1,000.00",Revenue,Blackburn with Darwen Borough Council,21000
Chorley Borough Council,http://statistics.data.gov.uk/id/local-authority/30UE,Democratic Represent and  Mgnt,1007,Streetscene & Leisure Contracts,Consultants` Fees,40077,Services,5027,Lower Burgh Meadow Managment Plan Details as per brief supplied and quotation provided,09/05/2014,94762,"1,800.00",Revenue,Bowland Ecology LTD,46442
Chorley Borough Council,http://statistics.data.gov.uk/id/local-authority/30UE,Homelessness,1075,Governance,Gas,20014,Energy Costs,5006,Cotswold House,21/05/2014,95314,973.82,Revenue,British Gas Business,22242
Chorley Borough Council,http://statistics.data.gov.uk/id/local-authority/30UE,Democratic Represent and  Mgnt,1007,Governance,Gas,20014,Energy Costs,5006,Coah House,21/05/2014,95314,360.78,Revenue,British Gas Business,22242
Chorley Borough Council,http://statistics.data.gov.uk/id/local-authority/30UE,Community Development,1097,Governance,Gas,20014,Energy Costs,5006,Accounting Avd Svcs,21/05/2014,95314,48.62,Revenue,British Gas Business,22242
Chorley Borough Council,http://statistics.data.gov.uk/id/local-authority/30UE,Democratic Represent and  Mgnt,1007,Governance,Gas,20014,Energy Costs,5006,Yarrow Valley Park,21/05/2014,95314,23.55,Revenue,British Gas Business,22242
Chorley Borough Council,http://statistics.data.gov.uk/id/local-authority/30UE,Unapportionable Central OHeads,1009,Governance,Gas,20014,Energy Costs,5006,Bengal Street,21/05/2014,95314,144.90,Revenue,British Gas Business,22242
Chorley Borough Council,http://statistics.data.gov.uk/id/local-authority/30UE,Democratic Represent and  Mgnt,1007,Governance,Gas,20014,Energy Costs,5006,Astley Cottage,21/05/2014,95314,120.11,Revenue,British Gas Business,22242
Chorley Borough Council,http://statistics.data.gov.uk/id/local-authority/30UE,Democratic Represent and  Mgnt,1007,Governance,Gas,20014,Energy Costs,5006,Clayton Brook Community Centre,21/05/2014,95314,142.38,Revenue,British Gas Business,22242
Chorley Borough Council,http://statistics.data.gov.uk/id/local-authority/30UE,Democratic Represent and  Mgnt,1007,Governance,Gas,20014,Energy Costs,5006,Asltey Village Comm Centre,21/05/2014,95314,170.52,Revenue,British Gas Business,22242
Chorley Borough Council,http://statistics.data.gov.uk/id/local-authority/30UE,Democratic Represent and  Mgnt,1007,Governance,Gas,20014,Energy Costs,5006,Astley Hall Farm House,21/05/2014,95314,12.91,Revenue,British Gas Business,22242
Chorley Borough Council,http://statistics.data.gov.uk/id/local-authority/30UE,Democratic Represent and  Mgnt,1007,Governance,Gas,20014,Energy Costs,5006,Eaves Green Comm Centre,21/05/2014,95314,147.82,Revenue,British Gas Business,22242
Chorley Borough Council,http://statistics.data.gov.uk/id/local-authority/30UE,Unapportionable Central OHeads,1009,Governance,Gas,20014,Energy Costs,5006,Union Street Offices,21/05/2014,95314,931.81,Revenue,British Gas Business,22242
Chorley Borough Council,http://statistics.data.gov.uk/id/local-authority/30UE,Democratic Represent and  Mgnt,1007,Governance,Gas,20014,Energy Costs,5006,Astley Hall,21/05/2014,95314,"1,118.82",Revenue,British Gas Business,22242
Chorley Borough Council,http://statistics.data.gov.uk/id/local-authority/30UE,Unapportionable Central OHeads,1009,Governance,Gas,20014,Energy Costs,5006,Town Hall,21/05/2014,95314,981.74,Revenue,British Gas Business,22242
Chorley Borough Council,http://statistics.data.gov.uk/id/local-authority/30UE,Unapportionable Central OHeads,1009,"Customer, ICT & Transactional",Telephones - Calls,40084,Communication and Computing,5028,Useage,12/05/2014,94926,886.02,Revenue,British Telecommunications Plc,17131
Chorley Borough Council,http://statistics.data.gov.uk/id/local-authority/30UE,Unapportionable Central OHeads,1009,"Customer, ICT & Transactional",Telephones - Rentals,40083,Communication and Computing,5028,Rental,12/05/2014,94926,"4,422.40",Revenue,British Telecommunications Plc,17131
Chorley Borough Council,http://statistics.data.gov.uk/id/local-authority/30UE,Unapportionable Central OHeads,1009,"Customer, ICT & Transactional",Photocopier Charges,40047,"Printing, Stationery & General",5026,Rental charges for Xerox wide format printer at Union Street 06/04/14 to 05/07/14,14/05/2014,94997,296.57,Revenue,Bytes Document Solutions,20052
Chorley Borough Council,http://statistics.data.gov.uk/id/local-authority/30UE,Service Management & Support,1009,Streetscene & Leisure Contracts,Supplies-Grounds Maintenance,40025,"Equipment, Furniture & Materia",5023,Supply Highway C2 fast setting mortar 25kg bags delivered to Bengal St depot,14/05/2014,95100,412.00,Revenue,C & W BERRY LIMITED,18180
Chorley Borough Council,http://statistics.data.gov.uk/id/local-authority/30UE,Service Management & Support,1009,Streetscene & Leisure Contracts,Supplies-Grounds Maintenance,40025,"Equipment, Furniture & Materia",5023,Supply Highway C2 fast setting mortar 25kg bags delivered to Bengal St depot,14/05/2014,95101,412.00,Revenue,C & W BERRY LIMITED,18180
Chorley Borough Council,http://statistics.data.gov.uk/id/local-authority/30UE,Service Management & Support,1009,Streetscene & Leisure Contracts,Vehicle Maintenance,30045,Direct Transport Costs,5016,Supply and fit brake discs pads and sensors on DK07LDE as reported by driver,21/05/2014,95248,743.14,Revenue,C P Davidson & Sons Ltd,21093
Chorley Borough Council,http://statistics.data.gov.uk/id/local-authority/30UE,Service Management & Support,1009,Streetscene & Leisure Contracts,Vehicle Maintenance,30045,Direct Transport Costs,5016,Supply and fit new clutch on DK57DFV as required,21/05/2014,95249,"1,368.70",Revenue,C P Davidson & Sons Ltd,21093
Chorley Borough Council,http://statistics.data.gov.uk/id/local-authority/30UE,Unapportionable Central OHeads,1009,"Customer, ICT & Transactional",Printing,40043,"Printing, Stationery & General",5026,GB-505918-OKL,16/05/2014,95199,"1,898.00",Revenue,Canon (UK) Ltd,17492
Chorley Borough Council,http://statistics.data.gov.uk/id/local-authority/30UE,Unapportionable Central OHeads,1009,"Customer, ICT & Transactional",Printing,40043,"Printing, Stationery & General",5026,GB-505928-OKL,16/05/2014,95199,400.36,Revenue,Canon (UK) Ltd,17492
Chorley Borough Council,http://statistics.data.gov.uk/id/local-authority/30UE,Unapportionable Central OHeads,1009,"Customer, ICT & Transactional",Printing,40043,"Printing, Stationery & General",5026,GB-506449-OKL,16/05/2014,95199,469.87,Revenue,Canon (UK) Ltd,17492
Chorley Borough Council,http://statistics.data.gov.uk/id/local-authority/30UE,Unapportionable Central OHeads,1009,"Customer, ICT & Transactional",Photocopier Charges,40047,"Printing, Stationery & General",5026,GB-505967-OKL,16/05/2014,95200,"1,281.21",Revenue,Canon (UK) Ltd,17492
Chorley Borough Council,http://statistics.data.gov.uk/id/local-authority/30UE,Housing Benefit Administration,1077,"Customer, ICT & Transactional",Corp Training - I.C.T.,17003,Indirect Employee Expenses,5002,1 place at the Capita Subsidy Seminar.,14/05/2014,95110,350.00,Revenue,Capita Business Services Ltd,17151
Chorley Borough Council,http://statistics.data.gov.uk/id/local-authority/30UE,Housing Benefit Administration,1077,"Customer, ICT & Transactional",HR Approved Training Expenses,17001,Indirect Employee Expenses,5002,Capita Benefits Subsidy Seminar,14/05/2014,95193,765.00,Revenue,Capita Business Services Ltd,17151
Chorley Borough Council,http://statistics.data.gov.uk/id/local-authority/30UE,Economic Development,1096,Economic Development,Grants To Other Organisations,40127,Grants and Subscriptions,5031,Starting in business grant,14/05/2014,95192,350.00,Revenue,Charlotte Lazarus,64388
Chorley Borough Council,http://statistics.data.gov.uk/id/local-authority/30UE,Corporate Management,1008,Streetscene & Leisure Contracts,Training Course Fees,17010,Indirect Employee Expenses,5002,Award for Personal Licence Holders Monday 31 March 2014 x7 delegates to be held at Chorley Town Hall,16/05/2014,95124,875.00,Revenue,Charnwood Training Group,63899
Chorley Borough Council,http://statistics.data.gov.uk/id/local-authority/30UE,Economic Development,1096,Economic Development,Grants To Other Organisations,40127,Grants and Subscriptions,5031,2014/15 Large Core Funding Contract,16/05/2014,95218,"15,000.00",Revenue,Chorley & South Ribble Shopmobility,18403
Chorley Borough Council,http://statistics.data.gov.uk/id/local-authority/30UE,Corporate Management,1008,Health Environment & Neighbourhoods,Taxi Testing & Vehicle Safety Report,40234,Services,5027,MOT,09/05/2014,95049,713.05,Revenue,Chorley Autocare Ltd,17110
Chorley Borough Council,http://statistics.data.gov.uk/id/local-authority/30UE,Corporate Management,1008,Health Environment & Neighbourhoods,Taxi Testing & Vehicle Safety Report,40234,Services,5027,MOT,09/05/2014,95049,111.15,Revenue,Chorley Autocare Ltd,17110
Chorley Borough Council,http://statistics.data.gov.uk/id/local-authority/30UE,Democratic Represent and  Mgnt,1007,Health Environment & Neighbourhoods,Sports Development Initiatives,40186,Miscellaneous Expenses,5034,Contribution as aggreed for sportivate project 2013/14 part two and final element of project.,09/05/2014,95020,330.00,Revenue,Chorley Bowmen,47474
Chorley Borough Council,http://statistics.data.gov.uk/id/local-authority/30UE,Homelessness,1075,Housing,Prevention Fund,40242,Miscellaneous Expenses,5034,Prevention payment regarding NAME AND ADDRESS REDACTED,14/05/2014,95079,296.97,Revenue,Chorley Community Housing,20531
Chorley Borough Council,http://statistics.data.gov.uk/id/local-authority/30UE,Community Development,1097,Governance,Grants To Other Organisations,40127,Grants and Subscriptions,5031,Councillor Community Grant Fund,28/05/2014,95374,250.00,Revenue,Chorley Cricket Club,65122
Chorley Borough Council,http://statistics.data.gov.uk/id/local-authority/30UE,Community Development,1097,Policy & Performance,Grants To Other Organisations,40127,Grants and Subscriptions,5031,Delivery of advice services,14/05/2014,95080,"28,400.00",Revenue,Chorley Sth Ribble & Dist Citizen Advice Bureaux,17035
Chorley Borough Council,http://statistics.data.gov.uk/id/local-authority/30UE,Community Development,1097,Policy & Performance,Grants To Other Organisations,40127,Grants and Subscriptions,5031,Provision of support for vulnerable women 1 April 2014 to 1 October 2014,14/05/2014,95129,"7,497.75",Revenue,Chorley Womens Centre,17036
Chorley Borough Council,http://statistics.data.gov.uk/id/local-authority/30UE,Democratic Represent and  Mgnt,1007,Streetscene & Leisure Contracts,External Contractor,40198,Miscellaneous Expenses,5034,Track and path surfacing works at Crosse Hall and installation of new boundary fencing.  Muck to be taken away.,09/05/2014,94995,"4,343.60",Revenue,Conservation Contracts North West,20520
Chorley Borough Council,http://statistics.data.gov.uk/id/local-authority/30UE,Flood Defence & Land Drainage,1046,Health Environment & Neighbourhoods,Legal Fees,40171,Miscellaneous Expenses,5034,Bailiff Services following the occupation of Fleet St Long Stay Car Park,28/05/2014,95362,732.80,Revenue,Constant and Co,47294
Chorley Borough Council,http://statistics.data.gov.uk/id/local-authority/30UE,Capital,Capital,Streetscene & Leisure Contracts,Equipment,3014,Capital Expenditure,Capital,"140L Plastic Wheeled Bin, Fully  Compliant With EN840 2012GreenComplete with authority ",28/05/2014,95402,"5,004.00",Capital,Craemer UK Ltd,64712
Chorley Borough Council,http://statistics.data.gov.uk/id/local-authority/30UE,Capital,Capital,Streetscene & Leisure Contracts,Equipment,3014,Capital Expenditure,Capital,"140L Plastic Wheeled Bin, Fully Compliant With EN840 2012BlueComplete with authority logo to the front of the body.",28/05/2014,95402,"5,004.00",Capital,Craemer UK Ltd,64712
Chorley Borough Council,http://statistics.data.gov.uk/id/local-authority/30UE,Capital,Capital,Streetscene & Leisure Contracts,Equipment,3014,Capital Expenditure,Capital,"140L Plastic Wheeled Bin, Fully Compliant with EN840 2012(Brown)Complete with authority logo to the front of the body.",28/05/2014,95402,"4,787.00",Capital,Craemer UK Ltd,64712
Chorley Borough Council,http://statistics.data.gov.uk/id/local-authority/30UE,Community Development,1097,Governance,Grants To Other Organisations,40127,Grants and Subscriptions,5031,Councillor Community Grant Fund 2014/2015,28/05/2014,95394,250.00,Revenue,Crossroads Care North West,53288
Chorley Borough Council,http://statistics.data.gov.uk/id/local-authority/30UE,Service Management & Support,1009,Streetscene & Leisure Contracts,Supplies-Grounds Maintenance,40025,"Equipment, Furniture & Materia",5023,2 Balmoral Benches 1.8m KD 2 Stainless Steel plaques 8``x2``,16/05/2014,95081,724.98,Revenue,Cyan,61782
Chorley Borough Council,http://statistics.data.gov.uk/id/local-authority/30UE,Service Management & Support,1009,Streetscene & Leisure Contracts,Supplies-Grounds Maintenance,40025,"Equipment, Furniture & Materia",5023,1 Balmoral Bench 1.8m KD 1 Stainless Steel plaque 8``x2``,30/05/2014,95403,379.16,Revenue,Cyan,61782
Chorley Borough Council,http://statistics.data.gov.uk/id/local-authority/30UE,Economic Development,1096,Economic Development,Grants To Other Organisations,40127,Grants and Subscriptions,5031,Starting in Business Grant,30/05/2014,95468,250.00,Revenue,Daniel Sage,65289
Chorley Borough Council,http://statistics.data.gov.uk/id/local-authority/30UE,Service Management & Support,1009,Streetscene & Leisure Contracts,Hire Of Transport,30028,Contrct Hire & Operating Lease,5018,Hire of Johnston VT650 for 12 week period. Please use this Number from 01/04/2014,14/05/2014,94969,"2,574.00",Revenue,Dawson Rental Sweepers,22011
Chorley Borough Council,http://statistics.data.gov.uk/id/local-authority/30UE,Homelessness,1075,Housing,General Subscriptions,40146,Grants and Subscriptions,5031,Subscription to 4 modules of Case Law Digest to 19th May 2015,16/05/2014,95217,440.00,Revenue,Destin Solutions Ltd,47614
Chorley Borough Council,http://statistics.data.gov.uk/id/local-authority/30UE,Democratic Represent and  Mgnt,1007,Governance,Tools & Equipment - Purchase,40003,"Equipment, Furniture & Materia",5023,25 x Ivy Leaf tablecloths in white 108`` round.,28/05/2014,95357,569.50,Revenue,Direct Linen Textiles International Ltd,65206
Chorley Borough Council,http://statistics.data.gov.uk/id/local-authority/30UE,Unapportionable Central OHeads,1009,Governance,Postages,40082,Communication and Computing,5028,Subscription for May 2014 - April 2015,28/05/2014,95435,250.00,Revenue,DX Network Services Ltd,17551
Chorley Borough Council,http://statistics.data.gov.uk/id/local-authority/30UE,Service Management & Support,1009,Streetscene & Leisure Contracts,Supplies-Grounds Maintenance,40025,"Equipment, Furniture & Materia",5023,"Band of Brothers,6 willow figu+es 1 Giant Poppy J143",16/05/2014,95083,"3,000.00",Revenue,Eco-Arts,21984
Chorley Borough Council,http://statistics.data.gov.uk/id/local-authority/30UE,Service Management & Support,1009,Streetscene & Leisure Contracts,Supplies-Grounds Maintenance,40025,"Equipment, Furniture & Materia",5023,4 Large Willow figures ( football),28/05/2014,95381,"2,000.00",Revenue,Eco-Arts,21984
Chorley Borough Council,http://statistics.data.gov.uk/id/local-authority/30UE,Unapportionable Central OHeads,1009,"Customer, ICT & Transactional",Mobile Phones,40086,Communication and Computing,5028,"1gb data bundle on 4g network - 2 year contract. SIMs only. 70 users x 2.50 per month x 2 years = 4,200. ",09/05/2014,94671,174.30,Revenue,EE LIMITED,63366
Chorley Borough Council,http://statistics.data.gov.uk/id/local-authority/30UE,Unapportionable Central OHeads,1009,"Customer, ICT & Transactional",Mobile Phones,40086,Communication and Computing,5028,"1gb data bundle on 4g network - 2 year contract. SIMs only. 30 users x 2.50 per month x 2 years = 1,800. ",09/05/2014,94671,74.70,Revenue,EE LIMITED,63366
Chorley Borough Council,http://statistics.data.gov.uk/id/local-authority/30UE,Unapportionable Central OHeads,1009,"Customer, ICT & Transactional",Mobile Phones,40086,Communication and Computing,5028,"1gb data bundle on 4g network - 2 year contract. SIMs only. 30 users x 2.50 per month x 2 years = 1,800. ",09/05/2014,94671,125.10,Revenue,EE LIMITED,63366
Chorley Borough Council,http://statistics.data.gov.uk/id/local-authority/30UE,Unapportionable Central OHeads,1009,Streetscene & Leisure Contracts,Depot Licences,40236,Miscellaneous Expenses,5034,Environmental licence for Chorley COuncil at Bengal St depot Chorley PR7 1SA as per invoice number 1147861,30/05/2014,95436,"4,840.00",Revenue,Environment Agency,18256
Chorley Borough Council,http://statistics.data.gov.uk/id/local-authority/30UE,Service Management & Support,1009,Streetscene & Leisure Contracts,Supplies-Grounds Maintenance,40025,"Equipment, Furniture & Materia",5023,20 x 10 litre pots Bamboo 40 x 2 litre pots Lavender,09/05/2014,94991,532.00,Revenue,Everglades Nurseries Ltd,20202
Chorley Borough Council,http://statistics.data.gov.uk/id/local-authority/30UE,Service Management & Support,1009,Streetscene & Leisure Contracts,Hire Of Transport,30028,Contrct Hire & Operating Lease,5018,Hire of Case tractor and side arm flail,16/05/2014,94940,"1,639.84",Revenue,F R Sharrock Ltd,18091
Chorley Borough Council,http://statistics.data.gov.uk/id/local-authority/30UE,Service Management & Support,1009,Streetscene & Leisure Contracts,Hire Of Transport,30028,Contrct Hire & Operating Lease,5018,Hire of Case tractor and side arm flail for Chorley Council at price quoted by Mark Dixon from 01/04/2014 ,16/05/2014,95135,"1,639.84",Revenue,F R Sharrock Ltd,18091
Chorley Borough Council,http://statistics.data.gov.uk/id/local-authority/30UE,Service Management & Support,1009,Streetscene & Leisure Contracts,Tools & Equipment - Maintenance,40005,"Equipment, Furniture & Materia",5023,Supply Air guides for Honda engines,30/05/2014,95438,66.90,Revenue,F R Sharrock Ltd,18091
Chorley Borough Council,http://statistics.data.gov.uk/id/local-authority/30UE,Service Management & Support,1009,Streetscene & Leisure Contracts,Tools & Equipment - Maintenance,40005,"Equipment, Furniture & Materia",5023,Supply Wessex cutting blades,30/05/2014,95438,114.24,Revenue,F R Sharrock Ltd,18091
Chorley Borough Council,http://statistics.data.gov.uk/id/local-authority/30UE,Service Management & Support,1009,Streetscene & Leisure Contracts,Tools & Equipment - Maintenance,40005,"Equipment, Furniture & Materia",5023,Supply blade adaptor for Husqvarna mowers,30/05/2014,95438,78.00,Revenue,F R Sharrock Ltd,18091
Chorley Borough Council,http://statistics.data.gov.uk/id/local-authority/30UE,Service Management & Support,1009,Streetscene & Leisure Contracts,Tools & Equipment - Maintenance,40005,"Equipment, Furniture & Materia",5023,Supply front axle for Husqvarna mowers,30/05/2014,95438,52.84,Revenue,F R Sharrock Ltd,18091
Chorley Borough Council,http://statistics.data.gov.uk/id/local-authority/30UE,Capital,Capital,Streetscene & Leisure Contracts,Other Contractor,3012,Capital Expenditure,Capital,Preparation and submission of report relating to the mineshaft treatment at Ranglett`s Recreation Ground.,09/05/2014,94939,"2,400.00",Capital,Forkers Limited,61788
Chorley Borough Council,http://statistics.data.gov.uk/id/local-authority/30UE,Capital,Capital,Streetscene & Leisure Contracts,Other Contractor,3012,Capital Expenditure,Capital,"supply and installation of floating fountain with `Candelabra` nozzle, LED lights wind speed detector and full control panel",16/05/2014,95139,"16,560.00",Capital,Fountains and Features,64754
Chorley Borough Council,http://statistics.data.gov.uk/id/local-authority/30UE,Service Management & Support,1009,Streetscene & Leisure Contracts,Freight Transport Assoc Fees,40150,Grants and Subscriptions,5031,Carryout 6 weekly safety inspection on DX55CVG  as required for Olicence compliance,09/05/2014,95008,115.33,Revenue,Freight Transport Assoc Ltd,16333
Chorley Borough Council,http://statistics.data.gov.uk/id/local-authority/30UE,Service Management & Support,1009,Streetscene & Leisure Contracts,Freight Transport Assoc Fees,40150,Grants and Subscriptions,5031,Carryout 6 weekly safety inspection on DK56JWL for Olicence compliance,09/05/2014,95008,115.33,Revenue,Freight Transport Assoc Ltd,16333
Chorley Borough Council,http://statistics.data.gov.uk/id/local-authority/30UE,Service Management & Support,1009,Streetscene & Leisure Contracts,Freight Transport Assoc Fees,40150,Grants and Subscriptions,5031,Carryout 6 weeklysafety inspection on DK07LDE for Olicence compliance,09/05/2014,95008,115.33,Revenue,Freight Transport Assoc Ltd,16333
Chorley Borough Council,http://statistics.data.gov.uk/id/local-authority/30UE,Service Management & Support,1009,Streetscene & Leisure Contracts,Freight Transport Assoc Fees,40150,Grants and Subscriptions,5031,Carryout 6 weekly safety inspection on DK56JWO for Olicence compliance,09/05/2014,95008,115.33,Revenue,Freight Transport Assoc Ltd,16333
Chorley Borough Council,http://statistics.data.gov.uk/id/local-authority/30UE,Service Management & Support,1009,Streetscene & Leisure Contracts,Training Course Fees,17010,Indirect Employee Expenses,5002,Driver CPC training session at price quoted from Tom at Freight Transport. 5th session completes 35hr training required ,09/05/2014,95023,990.00,Revenue,Freight Transport Assoc Ltd,16333
Chorley Borough Council,http://statistics.data.gov.uk/id/local-authority/30UE,Capital,Capital,Housing,Grants,3002,Capital Expenditure,Capital,Capital Works - Disabled Facility Grant,09/05/2014,94936,"3,245.00",Capital,G McGavock Ltd,16921
Chorley Borough Council,http://statistics.data.gov.uk/id/local-authority/30UE,Democratic Represent and  Mgnt,1007,Streetscene & Leisure Contracts,Security Service,40062,Services,5027,All Seasons,28/05/2014,95426,138.78,Revenue,G4S Cash Solutions UK Ltd,22099
Chorley Borough Council,http://statistics.data.gov.uk/id/local-authority/30UE,Democratic Represent and  Mgnt,1007,Streetscene & Leisure Contracts,Security Service,40062,Services,5027,Brinscall,28/05/2014,95426,54.32,Revenue,G4S Cash Solutions UK Ltd,22099
Chorley Borough Council,http://statistics.data.gov.uk/id/local-authority/30UE,Unapportionable Central OHeads,1009,Streetscene & Leisure Contracts,Security Service,40062,Services,5027,Union Street,28/05/2014,95426,54.32,Revenue,G4S Cash Solutions UK Ltd,22099
Chorley Borough Council,http://statistics.data.gov.uk/id/local-authority/30UE,Democratic Represent and  Mgnt,1007,Streetscene & Leisure Contracts,Security Service,40062,Services,5027,Clayton Green Sports,28/05/2014,95426,54.32,Revenue,G4S Cash Solutions UK Ltd,22099
Chorley Borough Council,http://statistics.data.gov.uk/id/local-authority/30UE,Homelessness,1075,Streetscene & Leisure Contracts,Security Service,40062,Services,5027,Cotswold House,28/05/2014,95426,27.15,Revenue,G4S Cash Solutions UK Ltd,22099
Chorley Borough Council,http://statistics.data.gov.uk/id/local-authority/30UE,Business Support,1095,Governance,Gas,20014,Energy Costs,5006,Gillibrand Street,16/05/2014,95146,277.22,Revenue,Gazprom Energy,56502
Chorley Borough Council,http://statistics.data.gov.uk/id/local-authority/30UE,Business Support,1095,Governance,Gas,20014,Energy Costs,5006,Gillibrand Street,28/05/2014,95419,689.62,Revenue,Gazprom Energy,56502
Chorley Borough Council,http://statistics.data.gov.uk/id/local-authority/30UE,Central Support Services,1009,"Customer, ICT & Transactional",Computer Equipment-Purchase,40098,Communication and Computing,5028,iPad Air Wi-Fi Cell 16GB Space Grey MD791B/A,30/05/2014,95406,"11,250.00",Revenue,GBM Digital Technologies Ltd,64085
Chorley Borough Council,http://statistics.data.gov.uk/id/local-authority/30UE,Democratic Represent and  Mgnt,1007,Health Environment & Neighbourhoods,Children's Activities,40188,Miscellaneous Expenses,5034,childrens t-shirts,14/05/2014,94843,"1,011.60",Revenue,Gifts 2 Impress Limited,20465
Chorley Borough Council,http://statistics.data.gov.uk/id/local-authority/30UE,Flood Defence & Land Drainage,1046,Health Environment & Neighbourhoods,Impounded Dogs Costs,40207,Miscellaneous Expenses,5034,Kennelling fees for 2014/15,14/05/2014,95084,534.00,Revenue,Glencoe Boarding Kennels,16734
Chorley Borough Council,http://statistics.data.gov.uk/id/local-authority/30UE,Development Control,1091,Governance,Professional Fees,40063,Services,5027,"Buckshaw Village S. 106 Overage CalculationRef: 02/04B435696",16/05/2014,95165,"3,950.00",Revenue,GVA Grimley Ltd,64753
Chorley Borough Council,http://statistics.data.gov.uk/id/local-authority/30UE,Housing Strategy,1069,Shared Service Arrangement,HM Land Registry Fees,40174,Miscellaneous Expenses,5034,land reg,20/05/2014,95356,57.00,Revenue,H M Land Registry,17567
Chorley Borough Council,http://statistics.data.gov.uk/id/local-authority/30UE,Unapportionable Central OHeads,1009,Shared Service Arrangement,HM Land Registry Fees,40174,Miscellaneous Expenses,5034,LAND REG,20/05/2014,95356,60.00,Revenue,H M Land Registry,17567
Chorley Borough Council,http://statistics.data.gov.uk/id/local-authority/30UE,Local Tax Collection,1010,Shared Service Arrangement,HM Land Registry Fees,40174,Miscellaneous Expenses,5034,LAND REG,20/05/2014,95356,30.00,Revenue,H M Land Registry,17567
Chorley Borough Council,http://statistics.data.gov.uk/id/local-authority/30UE,Development Control,1091,Shared Service Arrangement,HM Land Registry Fees,40174,Miscellaneous Expenses,5034,land reg,20/05/2014,95356,150.00,Revenue,H M Land Registry,17567
Chorley Borough Council,http://statistics.data.gov.uk/id/local-authority/30UE,Corporate Management,1008,Shared Service Arrangement,HM Land Registry Fees,40174,Miscellaneous Expenses,5034,land reg,20/05/2014,95356,109.00,Revenue,H M Land Registry,17567
Chorley Borough Council,http://statistics.data.gov.uk/id/local-authority/30UE,Housing Benefit Administration,1077,Shared Service Arrangement,HM Land Registry Fees,40174,Miscellaneous Expenses,5034,land reg,20/05/2014,95356,3.00,Revenue,H M Land Registry,17567
Chorley Borough Council,http://statistics.data.gov.uk/id/local-authority/30UE,Economic Development,1096,Shared Service Arrangement,Miscellaneous Expenses,40200,Miscellaneous Expenses,5034,land reg,20/05/2014,95356,9.00,Revenue,H M Land Registry,17567
Chorley Borough Council,http://statistics.data.gov.uk/id/local-authority/30UE,Unapportionable Central OHeads,1009,Shared Service Arrangement,IT Software - Annual Licences,40101,Communication and Computing,5028,Kalamazoo software support licence 2014/15,16/05/2014,95085,583.00,Revenue,Hague Computer Supplies Ltd,56014
Chorley Borough Council,http://statistics.data.gov.uk/id/local-authority/30UE,Service Management & Support,1009,Streetscene & Leisure Contracts,Supplies & Consumables -Street Cleansing,40235,"Equipment, Furniture & Materia",5023,Supply refuse sacks as per your quote size 500 x 855 x 975 in white complete with Chorley logo. Delivered to Bengal St,16/05/2014,95086,"6,222.00",Revenue,Harrisons Packaging Ltd,17555
Chorley Borough Council,http://statistics.data.gov.uk/id/local-authority/30UE,Unapportionable Central OHeads,1009,Policy & Performance,Exhibitions & Special Events,40158,Miscellaneous Expenses,5034,Whats Your Story Chorley A6 Booklet x 3000,21/05/2014,95254,343.00,Revenue,Haslam PrintersLtd,21777
Chorley Borough Council,http://statistics.data.gov.uk/id/local-authority/30UE,Development Control,1091,Planning,General Subscriptions,40146,Grants and Subscriptions,5031,Subscription to Development Control Practice Online for one concurrent user over one site licence for one year,14/05/2014,95167,"1,400.00",Revenue,Haymarket Publishing Services Ltd,16347
Chorley Borough Council,http://statistics.data.gov.uk/id/local-authority/30UE,Unapportionable Central OHeads,1009,Policy & Performance,Exhibitions & Special Events,40158,Miscellaneous Expenses,5034,Theatre in the Park,14/05/2014,95087,500.00,Revenue,Heartbreak Productions,56110
Chorley Borough Council,http://statistics.data.gov.uk/id/local-authority/30UE,Unapportionable Central OHeads,1009,"Customer, ICT & Transactional",Computer Software-Maintenance,40107,Communication and Computing,5028,VMware subs for the period 01.03.14 to 31.03.15,12/05/2014,94918,"4,309.50",Revenue,Hewlett - Packard Limited,22335
Chorley Borough Council,http://statistics.data.gov.uk/id/local-authority/30UE,Community Development,1097,Policy & Performance,Grants To Other Organisations,40127,Grants and Subscriptions,5031,Delivery of a family support service,09/05/2014,95026,"11,000.00",Revenue,Home-Start,20585
Chorley Borough Council,http://statistics.data.gov.uk/id/local-authority/30UE,Control Accounts,Control,Shared Service Arrangement,Manual Control Account,1,Balance Sheet,Balance,,12/05/2014,94786,"1,425.00",Revenue,Inland Revenue 065py00102078,17445
Chorley Borough Council,http://statistics.data.gov.uk/id/local-authority/30UE,Corporate Management,1008,Health Environment & Neighbourhoods,Miscellaneous Expenses,40200,Miscellaneous Expenses,5034,annual organisational membership for 2014/15 for Chorley Council (account 904) - as per invoice Number 9064,06/05/2014,94912,250.00,Revenue,Institute Of Licensing,16987
Chorley Borough Council,http://statistics.data.gov.uk/id/local-authority/30UE,Central Support Services,1009,"Customer, ICT & Transactional",Computer Equipment-Maintenance,40105,Communication and Computing,5028,Stack-Interconnect Extricom Support Plan incorporating Agile-Plus (WAP-AGILE-WRAP),21/05/2014,95216,"1,800.00",Revenue,Interconnect Network Systems,21292
Chorley Borough Council,http://statistics.data.gov.uk/id/local-authority/30UE,Service Management & Support,1009,Streetscene & Leisure Contracts,Vehicle Trackers,30046,Direct Transport Costs,5016,Lease of vehicle tracker system from 01/04/2014 through until 31/03/2015,14/05/2014,94920,795.80,Revenue,Investec Asset Finance Plc,53879
Chorley Borough Council,http://statistics.data.gov.uk/id/local-authority/30UE,Economic Development,1096,Economic Development,Tools & Equipment - Purchase,40003,"Equipment, Furniture & Materia",5023,"To Supply x4 sack trucks, rough terrain spec but with solid wheels@ 94.00 each (includes delivery)",21/05/2014,95361,376.00,Revenue,Jackson Handling Ltd,52743
Chorley Borough Council,http://statistics.data.gov.uk/id/local-authority/30UE,Democratic Represent and  Mgnt,1007,Streetscene & Leisure Contracts,Children's Activities,40188,Miscellaneous Expenses,5034,10 @ 3.6m x 150mm x 25mm roughsawn timber,09/05/2014,95009,32.80,Revenue,John H Mayor & Sons Ltd,16635
Chorley Borough Council,http://statistics.data.gov.uk/id/local-authority/30UE,Service Management & Support,1009,Streetscene & Leisure Contracts,Supplies-Grounds Maintenance,40025,"Equipment, Furniture & Materia",5023,12 - 16ft x 6`` x 2`` lengths 12 - 4ft x 6`` x 2`` lengths,09/05/2014,95009,151.20,Revenue,John H Mayor & Sons Ltd,16635
Chorley Borough Council,http://statistics.data.gov.uk/id/local-authority/30UE,Service Management & Support,1009,Streetscene & Leisure Contracts,Supplies-Grounds Maintenance,40025,"Equipment, Furniture & Materia",5023,2` x 2`` x 2`` - pointed stake,09/05/2014,95009,59.36,Revenue,John H Mayor & Sons Ltd,16635
Chorley Borough Council,http://statistics.data.gov.uk/id/local-authority/30UE,Service Management & Support,1009,Streetscene & Leisure Contracts,Supplies-Grounds Maintenance,40025,"Equipment, Furniture & Materia",5023,30 @ 3.6m x 150mm x 50mm roughsawn timber,09/05/2014,95009,210.00,Revenue,John H Mayor & Sons Ltd,16635
Chorley Borough Council,http://statistics.data.gov.uk/id/local-authority/30UE,Service Management & Support,1009,Streetscene & Leisure Contracts,Supplies-Grounds Maintenance,40025,"Equipment, Furniture & Materia",5023,6 @ 3.6m x 100mm x 100mm roughsawn timber,09/05/2014,95009,60.00,Revenue,John H Mayor & Sons Ltd,16635
Chorley Borough Council,http://statistics.data.gov.uk/id/local-authority/30UE,Service Management & Support,1009,Streetscene & Leisure Contracts,Supplies-Grounds Maintenance,40025,"Equipment, Furniture & Materia",5023,4 @ 3.6m x 50mm x 50mm roughsawn timber,09/05/2014,95009,10.00,Revenue,John H Mayor & Sons Ltd,16635
Chorley Borough Council,http://statistics.data.gov.uk/id/local-authority/30UE,Development Control,1091,Planning,Statutory Notices,40160,Miscellaneous Expenses,5034,Press notifications,14/05/2014,94820,349.50,Revenue,Johnston Publishing Ltd,20072
Chorley Borough Council,http://statistics.data.gov.uk/id/local-authority/30UE,Development Control,1091,Planning,Statutory Notices,40160,Miscellaneous Expenses,5034,Planning Public Notices to appear in the Chorley Guardian April 2014 - March 2015,14/05/2014,95170,265.62,Revenue,Johnston Publishing Ltd,20072
Chorley Borough Council,http://statistics.data.gov.uk/id/local-authority/30UE,Development Control,1091,Planning,Statutory Notices,40160,Miscellaneous Expenses,5034,Planning Public Notices to appear in the Chorley Guardian April 2014 - March 2015,21/05/2014,95309,251.64,Revenue,Johnston Publishing Ltd,20072
Chorley Borough Council,http://statistics.data.gov.uk/id/local-authority/30UE,Service Management & Support,1009,Streetscene & Leisure Contracts,Tools & Equipment - Purchase,40003,"Equipment, Furniture & Materia",5023,Supply 1 Johnston VT651 15 tonne road sweeper on DAF chasis complete with 3 year warranty as per your quotation chest,28/05/2014,94941,"126,950.00",Revenue,Johnston Sweepers Limited,20778
Chorley Borough Council,http://statistics.data.gov.uk/id/local-authority/30UE,Service Management & Support,1009,Streetscene & Leisure Contracts,Tools & Equipment - Purchase,40003,"Equipment, Furniture & Materia",5023,Supply 1 Johnston VT651 15 tonne road sweeper on DAF chasis complete with 3 year warranty as per your quotation chest,28/05/2014,94941,293.00,Revenue,Johnston Sweepers Limited,20778
Chorley Borough Council,http://statistics.data.gov.uk/id/local-authority/30UE,Control Accounts,Control,Shared Service Arrangement,General Balances,100,Balance Sheet,Balance,May Deductions,21/05/2014,95354,972.75,Revenue,Labour Councillors Association,17577
Chorley Borough Council,http://statistics.data.gov.uk/id/local-authority/30UE,Unapportionable Central OHeads,1009,Chief Executives Office,Photocopier Consumables,40049,"Printing, Stationery & General",5026,"15,000 letter headed paper",30/05/2014,95442,494.85,Revenue,Lancashire Business Forms Ltd,16665
Chorley Borough Council,http://statistics.data.gov.uk/id/local-authority/30UE,Capital,Capital,Housing,Grants,3002,Capital Expenditure,Capital,Capital Works - Disabled Facility Grant,09/05/2014,94935,"3,133.69",Capital,Lancashire County Council,17758
Chorley Borough Council,http://statistics.data.gov.uk/id/local-authority/30UE,Unapportionable Central OHeads,1009,Shared Service Arrangement,Pensions Increase Act Payments,18005,Indirect Employee Expenses,5002,Pension March,20/05/2014,95134,"18,656.37",Revenue,Lancashire County Council,18386
Chorley Borough Council,http://statistics.data.gov.uk/id/local-authority/30UE,Public Transport,1067,Streetscene & Leisure Contracts,Other Fees,40212,Miscellaneous Expenses,5034,Net rental income - Chorley Interchange 2013/2014,16/05/2014,95171,"15,955.02",Revenue,Lancashire County Council,17758
Chorley Borough Council,http://statistics.data.gov.uk/id/local-authority/30UE,Planning Policy,1092,Planning,Professional Fees,14011,Direct Employee Expenses,5001,The provision of environmental data services via Lancashire Environmental Record Network (LERN),30/05/2014,95286,"3,195.00",Revenue,Lancashire County Council,17758
Chorley Borough Council,http://statistics.data.gov.uk/id/local-authority/30UE,Collection Fund Revenue Accoun,,Shared Service Arrangement,NNDR County Share,2036,Precepts & Collection Fund,Precept,PRECEPT,20/05/2014,95358,"241,441.00",Revenue,Lancashire County Council,18386
Chorley Borough Council,http://statistics.data.gov.uk/id/local-authority/30UE,Precepts and Collection Fund,Precepts,Shared Service Arrangement,LCC Precept,2009,Precepts & Collection Fund,Precept,PRECEPT,20/05/2014,95358,"3,739,821.00",Revenue,Lancashire County Council,18386
Chorley Borough Council,http://statistics.data.gov.uk/id/local-authority/30UE,Corporate Management,1008,Policy & Performance,Other Fees,40212,Miscellaneous Expenses,5034,Meals on Wheels,28/05/2014,95418,372.00,Revenue,Lancashire Fayre,62967
Chorley Borough Council,http://statistics.data.gov.uk/id/local-authority/30UE,Corporate Management,1008,Streetscene & Leisure Contracts,Clinical Waste Collection,50007,Private Contractors,5042,Disposal of clinical waste form Chorley Households. Yellow bag collection FY 2013 / 2014 March to April Approx. 550 bags ,21/05/2014,95342,"1,057.54",Revenue,Lancashire Teaching Hospitals NHS FT,19003
Chorley Borough Council,http://statistics.data.gov.uk/id/local-authority/30UE,Collection Fund Revenue Accoun,,Shared Service Arrangement,NNDR Fire Share,2037,Precepts & Collection Fund,Precept,precept,20/05/2014,95222,"26,827.00",Revenue,Lancs Combined Fire Authority,17768
Chorley Borough Council,http://statistics.data.gov.uk/id/local-authority/30UE,Precepts and Collection Fund,Precepts,Shared Service Arrangement,LCFA Precept,2011,Precepts & Collection Fund,Precept,precept apr 14,20/05/2014,95223,"214,955.00",Revenue,Lancs Combined Fire Authority,17768
Chorley Borough Council,http://statistics.data.gov.uk/id/local-authority/30UE,Development Control,1091,Governance,Legal Fees,40171,Miscellaneous Expenses,5034,Fox Strategic Land and Property v Chorley Borough Council For the professional fees,09/05/2014,94938,"10,526.00",Revenue,Landmark Chambers,56730
Chorley Borough Council,http://statistics.data.gov.uk/id/local-authority/30UE,Unapportionable Central OHeads,1009,Governance,General Subscriptions,40146,Grants and Subscriptions,5031,LLG Subscription April 2014 - March 2015,28/05/2014,95384,300.00,Revenue,Lawyers in Local Government Ltd,60338
Chorley Borough Council,http://statistics.data.gov.uk/id/local-authority/30UE,Parking Services,1066,Streetscene & Leisure Contracts,External Contractors,50008,Private Contractors,5042,Enforcement and cash collection for off street car parks. 1 April to 31 August 2014,14/05/2014,95173,"3,846.92",Revenue,Legion Group,21973
Chorley Borough Council,http://statistics.data.gov.uk/id/local-authority/30UE,Development Control,1091,Governance,Legal Fees,40171,Miscellaneous Expenses,5034,Payment Runs,14/05/2014,95073,"2,000.00",Revenue,Lester Morrill,64761
Chorley Borough Council,http://statistics.data.gov.uk/id/local-authority/30UE,Unapportionable Central OHeads,1009,Shared Service Arrangement,Service Fees,40056,Services,5027,Financial Intelligence Toolkit Subscription 2014-15,06/05/2014,94417,"2,285.00",Revenue,LG Futures,22551
Chorley Borough Council,http://statistics.data.gov.uk/id/local-authority/30UE,Unapportionable Central OHeads,1009,Governance,External Contractors,50008,Private Contractors,5042,Core Service Charge,16/05/2014,95148,"42,320.42",Revenue,Liberata UK,20716
Chorley Borough Council,http://statistics.data.gov.uk/id/local-authority/30UE,Capital,Capital,Governance,Consultants Fees,3025,Capital Expenditure,Capital,Reactive Maintenance,16/05/2014,95148,"5,209.62",Capital,Liberata UK,20716
Chorley Borough Council,http://statistics.data.gov.uk/id/local-authority/30UE,Community Development,1097,Policy & Performance,Grants To Other Organisations,40127,Grants and Subscriptions,5031,Delivery of the Food Bank services,14/05/2014,95211,"7,500.00",Revenue,Living Waters Storehouse,60925
Chorley Borough Council,http://statistics.data.gov.uk/id/local-authority/30UE,Community Development,1097,Governance,Grants To Other Organisations,40127,Grants and Subscriptions,5031,Councillor Community Grant,28/05/2014,95373,250.00,Revenue,Living Waters Storehouse,60925
Chorley Borough Council,http://statistics.data.gov.uk/id/local-authority/30UE,Corporate Management,1008,Governance,Legal Fees,40171,Miscellaneous Expenses,5034,"741 - Property Searches Litigation  - Fulbright Costs - 1 April 2013 - 30 November 2013741 - Property Searches Litigation",21/05/2014,95141,"2,260.04",Revenue,Local Government Association,16243
Chorley Borough Council,http://statistics.data.gov.uk/id/local-authority/30UE,Corporate Management,1008,Health Environment & Neighbourhoods,Refunds,40220,Miscellaneous Expenses,5034,Refund of street trading license,09/05/2014,95028,440.50,Revenue,Lorraine Finch,64903
Chorley Borough Council,http://statistics.data.gov.uk/id/local-authority/30UE,Housing Benefit Administration,1077,HR & Org. Development,Agency Staff,13000,Direct Employee Expenses,5001,PAYE Benefits Officer SA71481 13.97,09/05/2014,94934,209.55,Revenue,Matrix SCM Ltd,22128
Chorley Borough Council,http://statistics.data.gov.uk/id/local-authority/30UE,Corporate Management,1008,HR & Org. Development,Agency Staff,13000,Direct Employee Expenses,5001,PAYE Public Protection Officer SA71531 17.17,09/05/2014,94934,364.86,Revenue,Matrix SCM Ltd,22128
Chorley Borough Council,http://statistics.data.gov.uk/id/local-authority/30UE,Homelessness,1075,HR & Org. Development,Agency Staff,13000,Direct Employee Expenses,5001,PAYE Housing Options Officer SA81528 15.60,09/05/2014,94934,503.10,Revenue,Matrix SCM Ltd,22128
Chorley Borough Council,http://statistics.data.gov.uk/id/local-authority/30UE,Housing Benefit Administration,1077,HR & Org. Development,Agency Staff,13000,Direct Employee Expenses,5001,PAYE Benefits Officer SA71481 13.97,09/05/2014,94987,282.89,Revenue,Matrix SCM Ltd,22128
Chorley Borough Council,http://statistics.data.gov.uk/id/local-authority/30UE,Flood Defence & Land Drainage,1046,HR & Org. Development,Agency Staff,13000,Direct Employee Expenses,5001,PAYE Public Protection Officer SA71531 17.17,09/05/2014,94987,635.31,Revenue,Matrix SCM Ltd,22128
Chorley Borough Council,http://statistics.data.gov.uk/id/local-authority/30UE,Homelessness,1075,HR & Org. Development,Agency Staff,13000,Direct Employee Expenses,5001,PAYE Housing Options Officer SA81528 0.43,09/05/2014,94987,7.74,Revenue,Matrix SCM Ltd,22128
Chorley Borough Council,http://statistics.data.gov.uk/id/local-authority/30UE,Homelessness,1075,HR & Org. Development,Agency Staff,13000,Direct Employee Expenses,5001,PAYE Housing Options Officer SA81528 15.60,09/05/2014,94987,378.30,Revenue,Matrix SCM Ltd,22128
Chorley Borough Council,http://statistics.data.gov.uk/id/local-authority/30UE,Homelessness,1075,HR & Org. Development,Agency Staff,13000,Direct Employee Expenses,5001,PAYE Housing Options Officer SA82597 15.60,09/05/2014,94987,468.00,Revenue,Matrix SCM Ltd,22128
Chorley Borough Council,http://statistics.data.gov.uk/id/local-authority/30UE,Housing Benefit Administration,1077,HR & Org. Development,Agency Staff,13000,Direct Employee Expenses,5001,PAYE Benefits Officer SA71481 13.97,16/05/2014,95213,206.06,Revenue,Matrix SCM Ltd,22128
Chorley Borough Council,http://statistics.data.gov.uk/id/local-authority/30UE,Flood Defence & Land Drainage,1046,HR & Org. Development,Agency Staff,13000,Direct Employee Expenses,5001,PAYE Public Protection Officer SA71531 17.17,16/05/2014,95213,553.75,Revenue,Matrix SCM Ltd,22128
Chorley Borough Council,http://statistics.data.gov.uk/id/local-authority/30UE,Unapportionable Central OHeads,1009,HR & Org. Development,Agency Staff,13000,Direct Employee Expenses,5001,PAYE Cleaner SA93340 10.38,16/05/2014,95213,155.70,Revenue,Matrix SCM Ltd,22128
Chorley Borough Council,http://statistics.data.gov.uk/id/local-authority/30UE,Unapportionable Central OHeads,1009,HR & Org. Development,Agency Staff,13000,Direct Employee Expenses,5001,PAYE Benefits Officer SA71481 13.97,28/05/2014,95371,272.42,Revenue,Matrix SCM Ltd,22128
Chorley Borough Council,http://statistics.data.gov.uk/id/local-authority/30UE,Flood Defence & Land Drainage,1046,HR & Org. Development,Agency Staff,13000,Direct Employee Expenses,5001,PAYE Public Protection Officer SA71531 17.17,28/05/2014,95371,678.22,Revenue,Matrix SCM Ltd,22128
Chorley Borough Council,http://statistics.data.gov.uk/id/local-authority/30UE,Unapportionable Central OHeads,1009,HR & Org. Development,Agency Staff,13000,Direct Employee Expenses,5001,PAYE Cleaner SA93340 10.38,28/05/2014,95371,155.70,Revenue,Matrix SCM Ltd,22128
Chorley Borough Council,http://statistics.data.gov.uk/id/local-authority/30UE,Elections,1012,HR & Org. Development,Agency Staff,13000,Direct Employee Expenses,5001,PAYE Postal Vote SA93506 8.59,28/05/2014,95371,315.69,Revenue,Matrix SCM Ltd,22128
Chorley Borough Council,http://statistics.data.gov.uk/id/local-authority/30UE,Elections,1012,HR & Org. Development,Agency Staff,13000,Direct Employee Expenses,5001,PAYE Postal Vote SA93506 12.65,28/05/2014,95371,66.41,Revenue,Matrix SCM Ltd,22128
Chorley Borough Council,http://statistics.data.gov.uk/id/local-authority/30UE,Elections,1012,HR & Org. Development,Agency Staff,13000,Direct Employee Expenses,5001,PAYE Postal Vote SA93507 8.59,28/05/2014,95371,304.95,Revenue,Matrix SCM Ltd,22128
Chorley Borough Council,http://statistics.data.gov.uk/id/local-authority/30UE,Elections,1012,HR & Org. Development,Agency Staff,13000,Direct Employee Expenses,5001,PAYE Postal Vote SA93507 12.63,28/05/2014,95371,50.52,Revenue,Matrix SCM Ltd,22128
Chorley Borough Council,http://statistics.data.gov.uk/id/local-authority/30UE,Elections,1012,HR & Org. Development,Agency Staff,13000,Direct Employee Expenses,5001,PAYE Postal Vote SA93508 8.59,28/05/2014,95371,360.79,Revenue,Matrix SCM Ltd,22128
Chorley Borough Council,http://statistics.data.gov.uk/id/local-authority/30UE,Elections,1012,HR & Org. Development,Agency Staff,13000,Direct Employee Expenses,5001,PAYE Postal Vote SA93513 8.59,28/05/2014,95371,249.12,Revenue,Matrix SCM Ltd,22128
Chorley Borough Council,http://statistics.data.gov.uk/id/local-authority/30UE,Elections,1012,HR & Org. Development,Agency Staff,13000,Direct Employee Expenses,5001,PAYE Postal Vote SA93513 12.65,28/05/2014,95371,50.60,Revenue,Matrix SCM Ltd,22128
Chorley Borough Council,http://statistics.data.gov.uk/id/local-authority/30UE,Elections,1012,HR & Org. Development,Agency Staff,13000,Direct Employee Expenses,5001,PAYE Postal Vote SA93782 8.59,28/05/2014,95371,311.40,Revenue,Matrix SCM Ltd,22128
Chorley Borough Council,http://statistics.data.gov.uk/id/local-authority/30UE,Elections,1012,HR & Org. Development,Agency Staff,13000,Direct Employee Expenses,5001,PAYE Postal Vote SA94231 8.59,28/05/2014,95371,244.82,Revenue,Matrix SCM Ltd,22128
Chorley Borough Council,http://statistics.data.gov.uk/id/local-authority/30UE,Elections,1012,HR & Org. Development,Agency Staff,13000,Direct Employee Expenses,5001,PAYE Postal Vote SA94231 12.65,28/05/2014,95371,53.76,Revenue,Matrix SCM Ltd,22128
Chorley Borough Council,http://statistics.data.gov.uk/id/local-authority/30UE,Democratic Represent and  Mgnt,1007,Streetscene & Leisure Contracts,Tools & Equipment - Maintenance,40005,"Equipment, Furniture & Materia",5023,"Radio warranty service - 735.00 Humidifier Service - 175.00 2 x B500 filters - 110.00 2 x B250 evaporation discs - 75.00",09/05/2014,94816,"1,135.00",Revenue,Meaco Measurement & Control Ltd,16527
Chorley Borough Council,http://statistics.data.gov.uk/id/local-authority/30UE,Service Management & Support,1009,Streetscene & Leisure Contracts,Supplies-Grounds Maintenance,40025,"Equipment, Furniture & Materia",5023,"Works completed @ Yarrow Works completed @ Mill Lane, Eccleston",28/05/2014,95337,400.00,Revenue,Mr Stephen Scambler,16710
Chorley Borough Council,http://statistics.data.gov.uk/id/local-authority/30UE,Corporate Management,1008,Health Environment & Neighbourhoods,Refunds,40220,Miscellaneous Expenses,5034,Refund of Street trading License,06/05/2014,94891,440.50,Revenue,Mrs Tonia Kellett,64900
Chorley Borough Council,http://statistics.data.gov.uk/id/local-authority/30UE,Service Management & Support,1009,Streetscene & Leisure Contracts,Registered Plant - Maintenance,40247,"Equipment, Furniture & Materia",5023,Supply cylinder bearings for John Deere 900 cylinder mowers as required,21/05/2014,95330,474.00,Revenue,MW Grass Machinery,21616
Chorley Borough Council,http://statistics.data.gov.uk/id/local-authority/30UE,Service Management & Support,1009,Streetscene & Leisure Contracts,Tools & Equipment - Purchase,40003,"Equipment, Furniture & Materia",5023,Carryout full service and repairs to Ransomes Super Certes bowling green machine as requested.,21/05/2014,95331,468.09,Revenue,MW Grass Machinery,21616
Chorley Borough Council,http://statistics.data.gov.uk/id/local-authority/30UE,Service Management & Support,1009,Streetscene & Leisure Contracts,Tools & Equipment - Purchase,40003,"Equipment, Furniture & Materia",5023,Carryout repairs and full service on Ransomes Super Certes bowling green machine as requested,21/05/2014,95332,349.42,Revenue,MW Grass Machinery,21616
Chorley Borough Council,http://statistics.data.gov.uk/id/local-authority/30UE,Service Management & Support,1009,Streetscene & Leisure Contracts,Hire Of Transport,30028,Contrct Hire & Operating Lease,5018,"Hire of rotovator and generator for 9 days at 40 per day as requested welding repairs to 4 x cylinders as requested",21/05/2014,95333,520.00,Revenue,MW Grass Machinery,21616
Chorley Borough Council,http://statistics.data.gov.uk/id/local-authority/30UE,Service Management & Support,1009,Streetscene & Leisure Contracts,Tools & Equipment - Purchase,40003,"Equipment, Furniture & Materia",5023,Carryout service repairs and cylinder grind to Ransomes Super cetres as requested,21/05/2014,95334,314.22,Revenue,MW Grass Machinery,21616
Chorley Borough Council,http://statistics.data.gov.uk/id/local-authority/30UE,Service Management & Support,1009,Streetscene & Leisure Contracts,Supplies-Grounds Maintenance,40025,"Equipment, Furniture & Materia",5023,"Reservation of 10,000 native single snowdrop bulbs in the green, disbatch and delivery to be confirmed at a later date ",09/05/2014,94968,703.00,Revenue,Naturescape,62058
Chorley Borough Council,http://statistics.data.gov.uk/id/local-authority/30UE,Economic Development,1096,Economic Development,External Contractor,40198,Miscellaneous Expenses,5034,"To provide: Consultation, design, management, training and delivery of a frontage refurbishment scheme for Market Street",06/05/2014,94467,"19,645.69",Revenue,Newground CIC,22064
Chorley Borough Council,http://statistics.data.gov.uk/id/local-authority/30UE,Democratic Represent and  Mgnt,1007,Streetscene & Leisure Contracts,Children's Activities,40188,Miscellaneous Expenses,5034,4 x Garmin etrex GPS,30/05/2014,95446,306.21,Revenue,NHBS,64553
Chorley Borough Council,http://statistics.data.gov.uk/id/local-authority/30UE,Service Management & Support,1009,Streetscene & Leisure Contracts,Supplies & Consumables -Street Cleansing,40235,"Equipment, Furniture & Materia",5023,Supply Poly wire sweeping brushes,16/05/2014,95219,252.88,Revenue,Northern Municipal Spares Ltd,17752
Chorley Borough Council,http://statistics.data.gov.uk/id/local-authority/30UE,Service Management & Support,1009,Streetscene & Leisure Contracts,Supplies & Consumables -Street Cleansing,40235,"Equipment, Furniture & Materia",5023,Supply yellow poly wire brushes,16/05/2014,95219,210.80,Revenue,Northern Municipal Spares Ltd,17752
Chorley Borough Council,http://statistics.data.gov.uk/id/local-authority/30UE,Service Management & Support,1009,Streetscene & Leisure Contracts,Supplies & Consumables -Street Cleansing,40235,"Equipment, Furniture & Materia",5023,Supply 4 row channel brushes for VT651,16/05/2014,95219,203.61,Revenue,Northern Municipal Spares Ltd,17752
Chorley Borough Council,http://statistics.data.gov.uk/id/local-authority/30UE,Service Management & Support,1009,Streetscene & Leisure Contracts,Vehicle Maintenance,30045,Direct Transport Costs,5016,Supply 4 row wire sweeper brushes for Johnston VT650,21/05/2014,95256,210.75,Revenue,Northern Municipal Spares Ltd,17752
Chorley Borough Council,http://statistics.data.gov.uk/id/local-authority/30UE,Service Management & Support,1009,Streetscene & Leisure Contracts,Vehicle Maintenance,30045,Direct Transport Costs,5016,Supply mixed pollywire brushes for Schmidt Swingo 250,21/05/2014,95256,316.05,Revenue,Northern Municipal Spares Ltd,17752
Chorley Borough Council,http://statistics.data.gov.uk/id/local-authority/30UE,Service Management & Support,1009,Streetscene & Leisure Contracts,Vehicle Maintenance,30045,Direct Transport Costs,5016,Supply Recycled polly sweeper brushes for Schmidt Swingo 250,21/05/2014,95256,203.70,Revenue,Northern Municipal Spares Ltd,17752
Chorley Borough Council,http://statistics.data.gov.uk/id/local-authority/30UE,Housing Benefit Administration,1077,"Customer, ICT & Transactional",Service Fees,40056,Services,5027,Mailroom Services,16/05/2014,94879,364.17,Revenue,Northgate Information Solutions UK Limited,18285
Chorley Borough Council,http://statistics.data.gov.uk/id/local-authority/30UE,Democratic Represent and  Mgnt,1007,Governance,Electricity,20013,Energy Costs,5006,Astley Hall Farm,21/05/2014,95303,19.43,Revenue,Npower Commercial Gas,16814
Chorley Borough Council,http://statistics.data.gov.uk/id/local-authority/30UE,Corporate Management,1008,Governance,Electricity,20013,Energy Costs,5006,Cemetery Chapel,21/05/2014,95303,0.54,Revenue,Npower Commercial Gas,16814
Chorley Borough Council,http://statistics.data.gov.uk/id/local-authority/30UE,Democratic Represent and  Mgnt,1007,Governance,Electricity,20013,Energy Costs,5006,King George V Playing Fields-Changing Rooms,21/05/2014,95303,1.54,Revenue,Npower Commercial Gas,16814
Chorley Borough Council,http://statistics.data.gov.uk/id/local-authority/30UE,Unapportionable Central OHeads,1009,Governance,Electricity,20013,Energy Costs,5006,"Civic Offices, Union Street",21/05/2014,95303,"3,104.36",Revenue,Npower Commercial Gas,16814
Chorley Borough Council,http://statistics.data.gov.uk/id/local-authority/30UE,Unapportionable Central OHeads,1009,Governance,Electricity,20013,Energy Costs,5006,Bengal Street Depot,21/05/2014,95303,634.57,Revenue,Npower Commercial Gas,16814
Chorley Borough Council,http://statistics.data.gov.uk/id/local-authority/30UE,Unapportionable Central OHeads,1009,Governance,Electricity,20013,Energy Costs,5006,"Town Hall, Market Street",21/05/2014,95303,"1,859.43",Revenue,Npower Commercial Gas,16814
Chorley Borough Council,http://statistics.data.gov.uk/id/local-authority/30UE,Homelessness,1075,Governance,Electricity,20013,Energy Costs,5006,Cotswold House Single Storey Wing,21/05/2014,95303,63.41,Revenue,Npower Commercial Gas,16814
Chorley Borough Council,http://statistics.data.gov.uk/id/local-authority/30UE,Business Support,1095,Governance,Electricity,20013,Energy Costs,5006,ADDRESS REDACTED,21/05/2014,95303,1.12,Revenue,Npower Commercial Gas,16814
Chorley Borough Council,http://statistics.data.gov.uk/id/local-authority/30UE,Business Support,1095,Governance,Electricity,20013,Energy Costs,5006,ADDRESS REDACTED,21/05/2014,95303,2.04,Revenue,Npower Commercial Gas,16814
Chorley Borough Council,http://statistics.data.gov.uk/id/local-authority/30UE,Business Support,1095,Governance,Electricity,20013,Energy Costs,5006,ADDRESS REDACTED,21/05/2014,95303,1.91,Revenue,Npower Commercial Gas,16814
Chorley Borough Council,http://statistics.data.gov.uk/id/local-authority/30UE,Corporate Management,1008,Health Environment & Neighbourhoods,Training Course Fees,17010,Indirect Employee Expenses,5002,Provide designated safeguarding refresher training for DSCO`s at Chorley Council on 1 April 2014,09/05/2014,95031,979.28,Revenue,NSPCC,21641
Chorley Borough Council,http://statistics.data.gov.uk/id/local-authority/30UE,Unapportionable Central OHeads,1009,HR & Org. Development,HR Recruitment - Advertising,15300,Indirect Employee Expenses,5002,Advertisement for Housing Support Services Manager in Inside Housing,28/05/2014,95397,735.00,Revenue,Ocean Media Group Ltd,16204
Chorley Borough Council,http://statistics.data.gov.uk/id/local-authority/30UE,Service Management & Support,1009,Streetscene & Leisure Contracts,Tools & Equipment - Purchase,40003,"Equipment, Furniture & Materia",5023,Supply 2 x BP-75-HV back pack sucker at price quoted 894 each plus delivery to Bengal St depot at 50,09/05/2014,95032,"1,840.00",Revenue,Overton Uk Limited,53283
Chorley Borough Council,http://statistics.data.gov.uk/id/local-authority/30UE,Capital,Capital,Governance,Main Contractor,3007,Capital Expenditure,Capital,"interim Certificate No.6 - Dated 8 May 2014.Part demolition and internal and external refurbishment works.",21/05/2014,95326,"34,662.12",Capital,P J Services (Bolton) Ltd,62962
Chorley Borough Council,http://statistics.data.gov.uk/id/local-authority/30UE,Flood Defence & Land Drainage,1046,Health Environment & Neighbourhoods,Games/Playing Field Equipment,40009,"Equipment, Furniture & Materia",5023,To provideHuman Table Football (AR Entertainments) as quoted  ref 2880. For event on Saturday price includes equipment ,28/05/2014,94999,465.00,Revenue,Peter Johnson Entertainments Ltd,47621
Chorley Borough Council,http://statistics.data.gov.uk/id/local-authority/30UE,Flood Defence & Land Drainage,1046,Health Environment & Neighbourhoods,External Contractor,40198,Miscellaneous Expenses,5034,Pest control duties for 2014/15,14/05/2014,95090,323.83,Revenue,Peter L Johnson,16727
Chorley Borough Council,http://statistics.data.gov.uk/id/local-authority/30UE,Flood Defence & Land Drainage,1046,Health Environment & Neighbourhoods,External Contractor,40198,Miscellaneous Expenses,5034,Pest control duties for 2014/15,28/05/2014,95398,323.83,Revenue,Peter L Johnson,16727
Chorley Borough Council,http://statistics.data.gov.uk/id/local-authority/30UE,Service Management & Support,1009,Streetscene & Leisure Contracts,Diesel/Derv,30007,Direct Transport Costs,5016,Supply 2000 litres of white diesel delivered to Bengal St depot Friday am,14/05/2014,95180,"2,301.74",Revenue,Pilkington Oils,18075
Chorley Borough Council,http://statistics.data.gov.uk/id/local-authority/30UE,Service Management & Support,1009,Streetscene & Leisure Contracts,Diesel/Derv,30007,Direct Transport Costs,5016,Supply 2000 litres of Red diesel to be delivered to Bengal St depot Friday am,14/05/2014,95181,"1,358.00",Revenue,Pilkington Oils,18075
Chorley Borough Council,http://statistics.data.gov.uk/id/local-authority/30UE,Planning Policy,1092,Governance,Miscellaneous Expenses,40200,Miscellaneous Expenses,5034,Payment to Mr Hammonds Solicitors in full and final settlement,09/05/2014,95033,"9,000.00",Revenue,Platt & Fishwick Solicitors,21482
Chorley Borough Council,http://statistics.data.gov.uk/id/local-authority/30UE,Local Tax Collection,1010,Shared Service Arrangement,Scheme Administration Costs,40214,Miscellaneous Expenses,5034,CBC contribution to LRF Funding 2014/2015,06/05/2014,94803,893.11,Revenue,Police & Crime Commissioner,17548
Chorley Borough Council,http://statistics.data.gov.uk/id/local-authority/30UE,Precepts and Collection Fund,Precepts,Shared Service Arrangement,LPA Precept,2010,Precepts & Collection Fund,Precept,PRECEPT,20/05/2014,95209,"526,526.00",Revenue,Police & Crime Commissioner,17438
Chorley Borough Council,http://statistics.data.gov.uk/id/local-authority/30UE,Parking Services,1066,Streetscene & Leisure Contracts,Signs:Provision & Maintenance,20065,Grounds Maintenance Costs,5013,"COACH SIGNS 3-signs, 4mm aluminium composite board, full colour digital print -,artwork to be supplied ",09/05/2014,95035,399.52,Revenue,Poppy Signs Ltd,21898
Chorley Borough Council,http://statistics.data.gov.uk/id/local-authority/30UE,Parking Services,1066,Streetscene & Leisure Contracts,Signs:Provision & Maintenance,20065,Grounds Maintenance Costs,5013,"Blue Badge Signs 1153mm * 812mm Remove existing panels and take back to the workshop.",09/05/2014,95035,115.40,Revenue,Poppy Signs Ltd,21898
Chorley Borough Council,http://statistics.data.gov.uk/id/local-authority/30UE,Economic Development,1096,Economic Development,Publicity - Advertising,40157,Miscellaneous Expenses,5034,Connexions building - revised signage work,14/05/2014,95182,580.15,Revenue,Poppy Signs Ltd,21898
Chorley Borough Council,http://statistics.data.gov.uk/id/local-authority/30UE,Service Management & Support,1009,Streetscene & Leisure Contracts,Supplies-Highways,40026,"Equipment, Furniture & Materia",5023,Supply of Boundary sign changes as per your quotation Ref No 2986/1 supplied ,14/05/2014,95185,"1,587.43",Revenue,Poppy Signs Ltd,21898
Chorley Borough Council,http://statistics.data.gov.uk/id/local-authority/30UE,Economic Development,1096,Economic Development,Miscellaneous Expenses,40200,Miscellaneous Expenses,5034,Connexions Centre Window strip and re-apply window graphics,28/05/2014,95448,282.71,Revenue,Poppy Signs Ltd,21898
Chorley Borough Council,http://statistics.data.gov.uk/id/local-authority/30UE,Unapportionable Central OHeads,1009,Policy & Performance,Publicity - Advertising,40157,Miscellaneous Expenses,5034,Window graphics and fascia signs for Market Walk units,30/05/2014,95487,"4,348.59",Revenue,Poppy Signs Ltd,21898
Chorley Borough Council,http://statistics.data.gov.uk/id/local-authority/30UE,Unapportionable Central OHeads,1009,HR & Org. Development,HR Approved Training Expenses,17001,Indirect Employee Expenses,5002,Course - Developing Me,14/05/2014,95094,495.00,Revenue,Potential Unearthed,22243
Chorley Borough Council,http://statistics.data.gov.uk/id/local-authority/30UE,Unapportionable Central OHeads,1009,HR & Org. Development,HR Approved Training Expenses,17001,Indirect Employee Expenses,5002,Dealing with Change Training Course,14/05/2014,95095,495.00,Revenue,Potential Unearthed,22243
Chorley Borough Council,http://statistics.data.gov.uk/id/local-authority/30UE,Unapportionable Central OHeads,1009,Health Environment & Neighbourhoods,Photocopier Consumables,40049,"Printing, Stationery & General",5026,"Evolution Everyday A4 80gsm, Box 2500",28/05/2014,95450,454.00,Revenue,Premier Paper Group,54451
Chorley Borough Council,http://statistics.data.gov.uk/id/local-authority/30UE,Unapportionable Central OHeads,1009,Health Environment & Neighbourhoods,Photocopier Consumables,40049,"Printing, Stationery & General",5026,Evolution Everyday A3 80gsm box 2500,28/05/2014,95450,184.60,Revenue,Premier Paper Group,54451
Chorley Borough Council,http://statistics.data.gov.uk/id/local-authority/30UE,Unapportionable Central OHeads,1009,Governance,Refreshments,40036,Catering,5024,water bottles and plastic cups,16/05/2014,95159,374.60,Revenue,Pressure Coolers Ltd T/A Maestro International Ltd,19767
Chorley Borough Council,http://statistics.data.gov.uk/id/local-authority/30UE,Housing Strategy,1069,Housing,External Contractor,40198,Miscellaneous Expenses,5034,Provision of Handyperson services in Chorley; quarter one 2014/15,16/05/2014,94760,"6,687.50",Revenue,Preston Care and Repair,50018
Chorley Borough Council,http://statistics.data.gov.uk/id/local-authority/30UE,Homelessness,1075,Housing,External Contractor,40198,Miscellaneous Expenses,5034,"Concierge service at Cotswold Supported Housing, Cotswold Road, Chorley. Lancashire, PR7 3HW. ",21/05/2014,95325,"4,326.74",Revenue,Profile Security Ltd,58000
Chorley Borough Council,http://statistics.data.gov.uk/id/local-authority/30UE,Democratic Represent and  Mgnt,1007,Health Environment & Neighbourhoods,Hire Of Transport,30028,Contrct Hire & Operating Lease,5018,"Hire of coach on Wednesday 22nd February at 11.00am Return travel Friday St Car park, Chorley to Blackpool Tower",09/05/2014,95037,430.00,Revenue,R S Tyrer Ltd,16255
Chorley Borough Council,http://statistics.data.gov.uk/id/local-authority/30UE,Capital,Capital,Streetscene & Leisure Contracts,Main Contractor,3007,Capital Expenditure,Capital,Supply and engraving of 3 x stone plaques for the Sensory Garden in Asltey Park,21/05/2014,95261,650.00,Capital,Rawcliffe`s Of Chorley Ltd,17993
Chorley Borough Council,http://statistics.data.gov.uk/id/local-authority/30UE,Service Management & Support,1009,Streetscene & Leisure Contracts,Training Course Fees,17010,Indirect Employee Expenses,5002,Training already received ,16/05/2014,95195,875.00,Revenue,Rigby Taylor Ltd,16299
Chorley Borough Council,http://statistics.data.gov.uk/id/local-authority/30UE,Service Management & Support,1009,Streetscene & Leisure Contracts,Supplies-Grounds Maintenance,40025,"Equipment, Furniture & Materia",5023,"Wildflower seed 5kg Ground Cover 3kg Rainbow Annuals1kg Contrast1kg Yellow Bouquet 1kg White Bouquet",28/05/2014,95262,"1,719.00",Revenue,Rigby Taylor Ltd,16299
Chorley Borough Council,http://statistics.data.gov.uk/id/local-authority/30UE,Service Management & Support,1009,Streetscene & Leisure Contracts,Supplies-Grounds Maintenance,40025,"Equipment, Furniture & Materia",5023,150g Chikara,28/05/2014,95312,"1,750.00",Revenue,Rigby Taylor Ltd,16299
Chorley Borough Council,http://statistics.data.gov.uk/id/local-authority/30UE,Service Management & Support,1009,Streetscene & Leisure Contracts,Supplies-Grounds Maintenance,40025,"Equipment, Furniture & Materia",5023,5 ltr Trustee Amenity Glyphosate,30/05/2014,95499,"1,060.00",Revenue,Rigby Taylor Ltd,16299
Chorley Borough Council,http://statistics.data.gov.uk/id/local-authority/30UE,Elections,1012,Governance,Postages,40082,Communication and Computing,5028,"poll cards for Coppull, Heskin Rivington and Brindle",06/05/2014,94915,"1,287.17",Revenue,Royal Mail Group Plc,17522
Chorley Borough Council,http://statistics.data.gov.uk/id/local-authority/30UE,Elections,1012,Governance,Postages,40082,Communication and Computing,5028,BUSINESS REPLY LICENCE - RXAE-GAEJ-REXJ - ELECTIONS - POSTAL VOTE RETURN,30/05/2014,95313,"2,403.10",Revenue,Royal Mail Group Plc,17522
Chorley Borough Council,http://statistics.data.gov.uk/id/local-authority/30UE,Elections,1012,Governance,Postages,40082,Communication and Computing,5028,Response Plus Service,30/05/2014,95451,"2,643.37",Revenue,Royal Mail Group Plc,17522
Chorley Borough Council,http://statistics.data.gov.uk/id/local-authority/30UE,Economic Development,1096,Economic Development,Grants To Other Organisations,40127,Grants and Subscriptions,5031,Starting in business grant,14/05/2014,95161,500.00,Revenue,NAME REDACTED,64965
Chorley Borough Council,http://statistics.data.gov.uk/id/local-authority/30UE,Homelessness,1075,Housing,Training Course Fees,17010,Indirect Employee Expenses,5002,Homelessness Law: Introductory: Manchester -15-16/07/2014,28/05/2014,95465,660.00,Revenue,Shelter Training,21902
Chorley Borough Council,http://statistics.data.gov.uk/id/local-authority/30UE,Service Management & Support,1009,Streetscene & Leisure Contracts,Grounds Maintenance Contractor,20043,Grounds Maintenance Costs,5013,Carryout excavation and relaying of tarmac around the bowling green area at Harpers Lane recreation ground as per your quote,21/05/2014,95220,"5,963.00",Revenue,Shiloh Surfacing,61457
Chorley Borough Council,http://statistics.data.gov.uk/id/local-authority/30UE,Unapportionable Central OHeads,1009,"Customer, ICT & Transactional",Consultants` Fees,40077,Services,5027,ICT consultancy work - April/May (12 working days) To be paid on a daily basis 15th March to 2nd May 2014 at 24 per hour,16/05/2014,95040,"4,199.11",Revenue,Simon Daniel Booth,57624
Chorley Borough Council,http://statistics.data.gov.uk/id/local-authority/30UE,Service Management & Support,1009,Streetscene & Leisure Contracts,Protective Clothing,40040,"Clothing, Uniforms and Laundry",5025,Size 8 - Caderousse boots,28/05/2014,95453,190.00,Revenue,Smart Image Workwear,21064
Chorley Borough Council,http://statistics.data.gov.uk/id/local-authority/30UE,Service Management & Support,1009,Streetscene & Leisure Contracts,Protective Clothing,40040,"Clothing, Uniforms and Laundry",5025,Size 9 - Caderousse boots,28/05/2014,95453,190.00,Revenue,Smart Image Workwear,21064
Chorley Borough Council,http://statistics.data.gov.uk/id/local-authority/30UE,Service Management & Support,1009,Streetscene & Leisure Contracts,Protective Clothing,40040,"Clothing, Uniforms and Laundry",5025,Size 7 - Caderousse boots,28/05/2014,95453,190.00,Revenue,Smart Image Workwear,21064
Chorley Borough Council,http://statistics.data.gov.uk/id/local-authority/30UE,Democratic Represent and  Mgnt,1007,Streetscene & Leisure Contracts,Exhibitions,40176,Miscellaneous Expenses,5034,catering for art exhibition preview 05.04.14,09/05/2014,94983,291.67,Revenue,Southcott Catering Ltd,21842
Chorley Borough Council,http://statistics.data.gov.uk/id/local-authority/30UE,Unapportionable Central OHeads,1009,Policy & Performance,Exhibitions & Special Events,40158,Miscellaneous Expenses,5034,"Staging, technical equipment and barriers for the Chorley FC event on 9 May 2014",28/05/2014,95263,"1,730.00",Revenue,Star Drive Music,16840
Chorley Borough Council,http://statistics.data.gov.uk/id/local-authority/30UE,Capital,Capital,Housing,Grants,3002,Capital Expenditure,Capital,INV 000916 NAME AND ADDRESS REDACTED,28/05/2014,95343,"3,665.00",Capital,Stewart Douglas Building Contractors Ltd,53736
Chorley Borough Council,http://statistics.data.gov.uk/id/local-authority/30UE,Capital,Capital,Housing,Grants,3002,Capital Expenditure,Capital,INV 00917 NAME AND ADDRESS REDACTED,28/05/2014,95370,"4,658.00",Capital,Stewart Douglas Building Contractors Ltd,53736
Chorley Borough Council,http://statistics.data.gov.uk/id/local-authority/30UE,Capital,Capital,Streetscene & Leisure Contracts,Equipment,3014,Capital Expenditure,Capital,RR55SGRN  Kerbside Box + Ergo Handle. 55 litre Green.,21/05/2014,95324,"7,507.50",Capital,Straight Plc,17633
Chorley Borough Council,http://statistics.data.gov.uk/id/local-authority/30UE,Capital,Capital,Streetscene & Leisure Contracts,Equipment,3014,Capital Expenditure,Capital,PRINT210 Print for PIM Kerbside Box Chorley logo,21/05/2014,95324,157.50,Capital,Straight Plc,17633
Chorley Borough Council,http://statistics.data.gov.uk/id/local-authority/30UE,Community Development,1097,Policy & Performance,Grants To Other Organisations,40127,Grants and Subscriptions,5031,Delivery of a community safety support service,09/05/2014,95027,"4,000.00",Revenue,Street Pastors,21946
Chorley Borough Council,http://statistics.data.gov.uk/id/local-authority/30UE,Capital,Capital,Housing,Grants,3002,Capital Expenditure,Capital,Capital Works - Disabled Facility Grant,09/05/2014,94978,375.00,Capital,Stringfellow Bldg Cntrctrs Ltd,17893
Chorley Borough Council,http://statistics.data.gov.uk/id/local-authority/30UE,Capital,Capital,Housing,Grants,3002,Capital Expenditure,Capital,NAME AND ADDRESS REDACTED,14/05/2014,95103,373.80,Capital,Stringfellow Bldg Cntrctrs Ltd,17893
Chorley Borough Council,http://statistics.data.gov.uk/id/local-authority/30UE,Capital,Capital,Housing,Grants,3002,Capital Expenditure,Capital,NAME AND ADDRESS REDACTED,14/05/2014,95104,"5,742.63",Capital,Stringfellow Bldg Cntrctrs Ltd,17893
Chorley Borough Council,http://statistics.data.gov.uk/id/local-authority/30UE,Capital,Capital,Housing,Grants,3002,Capital Expenditure,Capital,INV 9416 NAME AND ADDRESS REDACTED,14/05/2014,95105,"3,245.00",Capital,Stringfellow Bldg Cntrctrs Ltd,17893
Chorley Borough Council,http://statistics.data.gov.uk/id/local-authority/30UE,Capital,Capital,Housing,Grants,3002,Capital Expenditure,Capital,INV 9359 NAME AND ADDRESS REDACTED,14/05/2014,95106,"4,405.00",Capital,Stringfellow Bldg Cntrctrs Ltd,17893
Chorley Borough Council,http://statistics.data.gov.uk/id/local-authority/30UE,Capital,Capital,Housing,Grants,3002,Capital Expenditure,Capital,INV 9419 NAMEAND ADDRESS REDACTED,14/05/2014,95108,325.00,Capital,Stringfellow Bldg Cntrctrs Ltd,17893
Chorley Borough Council,http://statistics.data.gov.uk/id/local-authority/30UE,Capital,Capital,Housing,Grants,3002,Capital Expenditure,Capital,Capital Works - Disabled Facility Grant,14/05/2014,95212,"4,430.00",Capital,Stringfellow Bldg Cntrctrs Ltd,17893
Chorley Borough Council,http://statistics.data.gov.uk/id/local-authority/30UE,Unapportionable Central OHeads,1009,Chief Executives Office,General Subscriptions,40146,Grants and Subscriptions,5031,iNetwork Membership  2014 - 2015,30/05/2014,95457,"1,500.00",Revenue,Tameside MBC,19554
Chorley Borough Council,http://statistics.data.gov.uk/id/local-authority/30UE,Community Development,1097,Policy & Performance,Grants To Other Organisations,40127,Grants and Subscriptions,5031,Delivery of an arts and employment service,14/05/2014,95093,"5,000.00",Revenue,The Arts Partnership,18943
Chorley Borough Council,http://statistics.data.gov.uk/id/local-authority/30UE,Unapportionable Central OHeads,1009,Governance,Copyright Licence Fees,40168,Miscellaneous Expenses,5034,"8848 - Public Admin Licence, Professional Employees -   1232.40 8848 - 17% repertoire adjustment - (209.51)",21/05/2014,95322,"1,022.89",Revenue,The Copyright Licensing Agency Ltd,17480
Chorley Borough Council,http://statistics.data.gov.uk/id/local-authority/30UE,Democratic Represent and  Mgnt,1007,Governance,Data Protection Registration,40173,Miscellaneous Expenses,5034,"DP Registration Renewals for: Z2674268, Z2674254, Z2674237, Z2674240, Z267421X, Z2674223, Z267415X, Z1355560",28/05/2014,95372,280.00,Revenue,The Information Commissioner,16278
Chorley Borough Council,http://statistics.data.gov.uk/id/local-authority/30UE,Unapportionable Central OHeads,1009,HR & Org. Development,HR Recruitment - Advertising,15300,Indirect Employee Expenses,5002,IT Job Board Job Posting (Software Engineer),09/05/2014,95041,590.00,Revenue,The IT Job Board,65053
Chorley Borough Council,http://statistics.data.gov.uk/id/local-authority/30UE,Flood Defence & Land Drainage,1046,Health Environment & Neighbourhoods,Miscellaneous Expenses,40200,Miscellaneous Expenses,5034,BRITISH CYCLING PARTNERSHIP AGREEMENT 2014-17 - CHORLEY BOROUGH COUNCIL,14/05/2014,95092,"10,000.00",Revenue,The National Cycling Centre,60923
Chorley Borough Council,http://statistics.data.gov.uk/id/local-authority/30UE,Democratic Represent and  Mgnt,1007,Governance,Printing of Year Book,40045,"Printing, Stationery & General",5026,120 Council year book and diary as per quote E7290,21/05/2014,95320,832.12,Revenue,The Print Quarter,17987
Chorley Borough Council,http://statistics.data.gov.uk/id/local-authority/30UE,Unapportionable Central OHeads,1009,Chief Executives Office,Postages,40082,Communication and Computing,5028,Mail Collection for all Departments,12/05/2014,95042,495.71,Revenue,TNT Post North Ltd,21187
Chorley Borough Council,http://statistics.data.gov.uk/id/local-authority/30UE,Unapportionable Central OHeads,1009,Chief Executives Office,Postages,40082,Communication and Computing,5028,Mail collection for all departments,16/05/2014,95221,504.30,Revenue,TNT Post North Ltd,21187
Chorley Borough Council,http://statistics.data.gov.uk/id/local-authority/30UE,Unapportionable Central OHeads,1009,Chief Executives Office,Postages,40082,Communication and Computing,5028,Mail collection for all departments,21/05/2014,95282,450.88,Revenue,TNT Post North Ltd,21187
Chorley Borough Council,http://statistics.data.gov.uk/id/local-authority/30UE,Unapportionable Central OHeads,1009,Chief Executives Office,Postages,40082,Communication and Computing,5028,Mail collection for all departments,21/05/2014,95283,696.82,Revenue,TNT Post North Ltd,21187
Chorley Borough Council,http://statistics.data.gov.uk/id/local-authority/30UE,Service Management & Support,1009,Streetscene & Leisure Contracts,Grounds Maintenance Contractor,20043,Grounds Maintenance Costs,5013,"Works completed on various sites White Coppice, Greenside & Astley Park",09/05/2014,95006,720.00,Revenue,Treescape North West Ltd,17688
Chorley Borough Council,http://statistics.data.gov.uk/id/local-authority/30UE,Service Management & Support,1009,Streetscene & Leisure Contracts,Grounds Maintenance Contractor,20043,Grounds Maintenance Costs,5013,"Tree works completed on various sites St Marys, Euxton Astley Hall - near the lake Lucas Lane, WhittleClayton Brook ",09/05/2014,95007,630.00,Revenue,Treescape North West Ltd,17688
Chorley Borough Council,http://statistics.data.gov.uk/id/local-authority/30UE,Service Management & Support,1009,Streetscene & Leisure Contracts,Grounds Maintenance Contractor,20043,Grounds Maintenance Costs,5013,Works completed. Yarrow Valley Country Park,09/05/2014,95044,"2,340.00",Revenue,Treescape North West Ltd,17688
Chorley Borough Council,http://statistics.data.gov.uk/id/local-authority/30UE,Service Management & Support,1009,Streetscene & Leisure Contracts,Petrol,30005,Direct Transport Costs,5016,Petrol,28/05/2014,95270,479.51,Revenue,Uk Fuels Ltd,57996
Chorley Borough Council,http://statistics.data.gov.uk/id/local-authority/30UE,Democratic Represent and  Mgnt,1007,Streetscene & Leisure Contracts,Use Of Transport - Mayoral Car,30015,Transport Recharges,5017,Petrol,28/05/2014,95270,57.97,Revenue,Uk Fuels Ltd,57996
Chorley Borough Council,http://statistics.data.gov.uk/id/local-authority/30UE,Unapportionable Central OHeads,1009,HR & Org. Development,Operational Wages,10200,Direct Employee Expenses,5001,Level 1-5,28/05/2014,95363,"1,394.26",Revenue,UK Healthcare (BDHSC),17241
Chorley Borough Council,http://statistics.data.gov.uk/id/local-authority/30UE,Control Accounts,Control,HR & Org. Development,General Balances,100,Balance Sheet,Balance,Top Ups,28/05/2014,95363,398.48,Revenue,UK Healthcare (BDHSC),17241
Chorley Borough Council,http://statistics.data.gov.uk/id/local-authority/30UE,Local Tax Collection,1010,"Customer, ICT & Transactional",Postages,40082,Communication and Computing,5028,Imail Eco Business Mono Letters - Hybrid mail contract,06/05/2014,94866,699.15,Revenue,UKMAIL Ltd (Mail),57758
Chorley Borough Council,http://statistics.data.gov.uk/id/local-authority/30UE,Local Tax Collection,1010,"Customer, ICT & Transactional",Postages,40082,Communication and Computing,5028,Imail Eco Business Mono Letters - Hybrid mail contract,06/05/2014,94867,626.90,Revenue,UKMAIL Ltd (Mail),57758
Chorley Borough Council,http://statistics.data.gov.uk/id/local-authority/30UE,Unapportionable Central OHeads,1009,"Customer, ICT & Transactional",Postages,40082,Communication and Computing,5028,Imail Eco Business mono letters - hybrid,14/05/2014,95112,624.20,Revenue,UKMAIL Ltd (Mail),57758
Chorley Borough Council,http://statistics.data.gov.uk/id/local-authority/30UE,Unapportionable Central OHeads,1009,"Customer, ICT & Transactional",Printing,40043,"Printing, Stationery & General",5026,Hybrid mail - annual billing inserts 2014-15,14/05/2014,95210,"1,000.68",Revenue,UKMAIL Ltd (Mail),57758
Chorley Borough Council,http://statistics.data.gov.uk/id/local-authority/30UE,Unapportionable Central OHeads,1009,"Customer, ICT & Transactional",Postages,40082,Communication and Computing,5028,Imail Eco Business mono letters - hybrid,21/05/2014,95284,422.35,Revenue,UKMAIL Ltd (Mail),57758
Chorley Borough Council,http://statistics.data.gov.uk/id/local-authority/30UE,Control Accounts,Control,Shared Service Arrangement,General Balances,100,Balance Sheet,Balance,May Deductions,21/05/2014,95351,"1,263.00",Revenue,Unify Credit Union Ltd,55509
Chorley Borough Council,http://statistics.data.gov.uk/id/local-authority/30UE,Corporate Management,1008,Streetscene & Leisure Contracts,Water - Metered Supplies,20022,Water Services,5009,"Toilets, Market Place",06/05/2014,94833,"1,794.59",Revenue,United Utilities Water Plc,17926
Chorley Borough Council,http://statistics.data.gov.uk/id/local-authority/30UE,Parking Services,1066,Streetscene & Leisure Contracts,Water - Unmetered Supply,20023,Water Services,5009,Short Stay Car Park,09/05/2014,95051,278.19,Revenue,United Utilities Water Plc,17926
Chorley Borough Council,http://statistics.data.gov.uk/id/local-authority/30UE,Corporate Management,1008,Streetscene & Leisure Contracts,Water - Metered Supplies,20022,Water Services,5009,Toilets Market Place,14/05/2014,95183,"1,872.67",Revenue,United Utilities Water Plc,17926
Chorley Borough Council,http://statistics.data.gov.uk/id/local-authority/30UE,Unapportionable Central OHeads,1009,Governance,Water - Metered Supplies,20022,Water Services,5009,Council Offices,16/05/2014,95190,827.90,Revenue,United Utilities Water Plc,17926
Chorley Borough Council,http://statistics.data.gov.uk/id/local-authority/30UE,Unapportionable Central OHeads,1009,"Customer, ICT & Transactional",Computer Equipment - Security,40106,Communication and Computing,5028,PSN Direct Network,12/05/2014,94876,999.00,Revenue,Vodafone Ltd,60180
Chorley Borough Council,http://statistics.data.gov.uk/id/local-authority/30UE,Unapportionable Central OHeads,1009,Governance,Professional Fees,14011,Direct Employee Expenses,5001,Advice on Employer pemsion contribution,16/05/2014,95191,"1,100.00",Revenue,Weightmans LLP,22212
Chorley Borough Council,http://statistics.data.gov.uk/id/local-authority/30UE,Democratic Represent and  Mgnt,1007,Streetscene & Leisure Contracts,Consultants` Fees,40077,Services,5027,Curatorial Consultancy fees for April 2014. Including two extra days for exhibition work and postage for exhibition preview,14/05/2014,95206,816.62,Revenue,Whittle and Draper Fine Art,52271
Chorley Borough Council,http://statistics.data.gov.uk/id/local-authority/30UE,Democratic Represent and  Mgnt,1007,Streetscene & Leisure Contracts,Consultants` Fees,40077,Services,5027,Curatorial Consultancy fees for April 2014. Including two extra days for exhibition work and postage for exhibition preview ,14/05/2014,95206,37.20,Revenue,Whittle and Draper Fine Art,52271
Chorley Borough Council,http://statistics.data.gov.uk/id/local-authority/30UE,Corporate Management,1008,Streetscene & Leisure Contracts,Vehicle Maintenance,30045,Direct Transport Costs,5016,Carryout various jobs on MF06NYA as reported bey driver ,21/05/2014,95310,395.75,Revenue,Wrekamendid Services Ltd,21188
Chorley Borough Council,http://statistics.data.gov.uk/id/local-authority/30UE,Corporate Management,1008,Streetscene & Leisure Contracts,Vehicle Maintenance,30045,Direct Transport Costs,5016,Carryout pre MOT inspection and service on MF06NYA  and take for annual test,21/05/2014,95319,361.00,Revenue,Wrekamendid Services Ltd,21188
Chorley Borough Council,http://statistics.data.gov.uk/id/local-authority/30UE,Corporate Management,1008,Streetscene & Leisure Contracts,Vehicle Maintenance,30045,Direct Transport Costs,5016,Carryout pre MOT inspection and service on MF06NYA  and take for annual test,21/05/2014,95319,30.00,Revenue,Wrekamendid Services Ltd,21188
Chorley Borough Council,http://statistics.data.gov.uk/id/local-authority/30UE,Corporate Management,1008,Streetscene & Leisure Contracts,Hire Of Transport,30028,Contrct Hire & Operating Lease,5018,Transport services under Warm Homes Healthy People scheme 2013-14,09/05/2014,94961,294.40,Revenue,Yellow Cabs (North West Ltd),52276
